Workbook

Sheet MONOPOLE
L4: 1 | R4: TIME
R7: 7.135425578 | S7: TIME FOR MAXIMUM VOLTAGE
R8: 0.07112543007 | S8: MAXIMUM VOLTAGE
R9: 7.302967433 | S9: time to reach COIL
S15: PRESS TO FIND
S16: TIME OF MAX VOLTAGE
A17: 0 | S17: AND TIME TO REACH
S18: LOOP
A28: 1
A36: 1

Sheet magnet
L4: 1
S5: MOVE SLIDER
S6: TO SEE INSTANT EMF
S10: NUMBER OF LOOPS
T11: =arspeiron -> 20
S15: LENGTH OF COIL
T16: =mikos -> 90
AN20: 70 | AO20: 340
S21: LENGTH OF MAGNET | AM21: 1 | AN21: 72.25 | AO21: 415
T22: =d -> 30 | AM22: 2 | AN22: 74.5 | AO22: 340
AM23: 3 | AN23: 76.75 | AO23: 415
AM24: 4 | AN24: 79 | AO24: 340
S25: ACCELARATION | AM25: 5 | AN25: 81.25 | AO25: 415
AM26: 6 | AN26: 83.5 | AO26: 340
AM27: 7 | AN27: 85.75 | AO27: 415
T28: =acceleration -> 1.5 | AM28: 8 | AN28: 88 | AO28: 340
AM29: 9 | AN29: 90.25 | AO29: 415
AM30: 10 | AN30: 92.5 | AO30: 340
AL31: 11 | AM31: 11 | AN31: 94.75 | AO31: 415
AM32: 12 | AN32: 97 | AO32: 340
AM33: 13 | AN33: 99.25 | AO33: 415
AM34: 14 | AN34: 101.5 | AO34: 340
AM35: 15 | AN35: 103.75 | AO35: 415
AM36: 16 | AN36: 106 | AO36: 340
AM37: 17 | AN37: 108.25 | AO37: 415
AM38: 18 | AN38: 110.5 | AO38: 340
AM39: 19 | AN39: 112.75 | AO39: 415
AM40: 20 | AN40: 115 | AO40: 340
AM41: 21 | AN41: 117.25 | AO41: 415
AM42: 22 | AN42: 119.5 | AO42: 340
AM43: 23 | AN43: 121.75 | AO43: 415
AM44: 24 | AN44: 124 | AO44: 340
AM45: 25 | AN45: 126.25 | AO45: 415
AM46: 26 | AN46: 128.5 | AO46: 340
AM47: 27 | AN47: 130.75 | AO47: 415
AM48: 28 | AN48: 133 | AO48: 340
AM49: 29 | AN49: 135.25 | AO49: 415
AM50: 30 | AN50: 137.5 | AO50: 340
AM51: 31 | AN51: 139.75 | AO51: 415
AM52: 32 | AN52: 142 | AO52: 340
AM53: 33 | AN53: 144.25 | AO53: 415
AM54: 34 | AN54: 146.5 | AO54: 340
AM55: 35 | AN55: 148.75 | AO55: 415
AM56: 36 | AN56: 151 | AO56: 340
AM57: 37 | AN57: 153.25 | AO57: 415
AM58: 38 | AN58: 155.5 | AO58: 340
AM59: 39 | AN59: 157.75 | AO59: 415
AM60: 40 | AN60: 160 | AO60: 340

Sheet relative movement
I1: V
O6: 50
H14: MAGNET GOING THROUGH COIL | M14: slide to watch the instant position of magnet and coil
O16: 160
O17: =85+O16 -> 245 | Q17: =CELL("contents",O17) -> 245
J20: CHANGE PARAMETERS | M20: COIL'S LENGTH | N20: 50 | O20: coil_length | Q20: Dl | R20: =coil_length/number_of_turns -> 0.5 | AN20: 60 | AO20: 340
J21: BY PRESSING BUTTON | M21: coils position | N21: 0 | O21: 1 | Q21: coil_radius | R21: 3 | AM21: 1 | AN21: 60.25 | AO21: 385
M22: coills mass | N22: 1 | O22: 1 | Q22: number of turns | R22: 100 | AM22: 2 | AN22: 60.5 | AO22: 340
L23: magnet's mass | M23: 0.5 | N23: magnet_mass | P23: varxi | Q23: 20 | AL23: 3 | AM23: 3 | AN23: 60.75 | AO23: 385
M24: coil's resistance | N24: 0.8 | O24: varxi | Q24: MAGNET X0 | R24: -20 | AM24: 4 | AN24: 61 | AO24: 340
M25: magnet's length | N25: 40 | O25: coil_r | Q25: ALFA | R25: 0.006 | AM25: 5 | AN25: 61.25 | AO25: 385
AM26: 6 | AN26: 61.5 | AO26: 340
AM27: 7 | AN27: 61.75 | AO27: 385
AM28: 8 | AN28: 62 | AO28: 340
AL29: 9 | AM29: 9 | AN29: 62.25 | AO29: 385
AM30: 10 | AN30: 62.5 | AO30: 340
AM31: 11 | AN31: 62.75 | AO31: 385
P32: 32 | AM32: 12 | AN32: 63 | AO32: 340
AM33: 13 | AN33: 63.25 | AO33: 385
AM34: 14 | AN34: 63.5 | AO34: 340
AL35: 15 | AM35: 15 | AN35: 63.75 | AO35: 385
AM36: 16 | AN36: 64 | AO36: 340
AL37: 17 | AM37: 17 | AN37: 64.25 | AO37: 385
AM38: 18 | AN38: 64.5 | AO38: 340
AM39: 19 | AN39: 64.75 | AO39: 385
AM40: 20 | AN40: 65 | AO40: 340
AM41: 21 | AN41: 65.25 | AO41: 385
AM42: 22 | AN42: 65.5 | AO42: 340
AM43: 23 | AN43: 65.75 | AO43: 385
AM44: 24 | AN44: 66 | AO44: 340
AM45: 25 | AN45: 66.25 | AO45: 385
AM46: 26 | AN46: 66.5 | AO46: 340
AM47: 27 | AN47: 66.75 | AO47: 385
AM48: 28 | AN48: 67 | AO48: 340
AM49: 29 | AN49: 67.25 | AO49: 385
AM50: 30 | AN50: 67.5 | AO50: 340
AM51: 31 | AN51: 67.75 | AO51: 385
AM52: 32 | AN52: 68 | AO52: 340
AM53: 33 | AN53: 68.25 | AO53: 385
AM54: 34 | AN54: 68.5 | AO54: 340
AM55: 35 | AN55: 68.75 | AO55: 385
AM56: 36 | AN56: 69 | AO56: 340
AM57: 37 | AN57: 69.25 | AO57: 385
AM58: 38 | AN58: 69.5 | AO58: 340
AM59: 39 | AN59: 69.75 | AO59: 385
AM60: 40 | AN60: 70 | AO60: 340
AM61: 41 | AN61: 70.25 | AO61: 385
AM62: 42 | AN62: 70.5 | AO62: 340
AM63: 43 | AN63: 70.75 | AO63: 385
AM64: 44 | AN64: 71 | AO64: 340
AM65: 45 | AN65: 71.25 | AO65: 385
AM66: 46 | AN66: 71.5 | AO66: 340
AM67: 47 | AN67: 71.75 | AO67: 385
AM68: 48 | AN68: 72 | AO68: 340
AM69: 49 | AN69: 72.25 | AO69: 385
AM70: 50 | AN70: 72.5 | AO70: 340
AM71: 51 | AN71: 72.75 | AO71: 385
AM72: 52 | AN72: 73 | AO72: 340
AM73: 53 | AN73: 73.25 | AO73: 385
AM74: 54 | AN74: 73.5 | AO74: 340
AM75: 55 | AN75: 73.75 | AO75: 385
AM76: 56 | AN76: 74 | AO76: 340
N77: =M91+1 -> 5 | AM77: 57 | AN77: 74.25 | AO77: 385
AM78: 58 | AN78: 74.5 | AO78: 340
AM79: 59 | AN79: 74.75 | AO79: 385
AM80: 60 | AN80: 75 | AO80: 340
AM81: 61 | AN81: 75.25 | AO81: 385
AM82: 62 | AN82: 75.5 | AO82: 340
AM83: 63 | AN83: 75.75 | AO83: 385
AM84: 64 | AN84: 76 | AO84: 340
N85: center of mass | AM85: 65 | AN85: 76.25 | AO85: 385
AM86: 66 | AN86: 76.5 | AO86: 340
M87: position of coil | AM87: 67 | AN87: 76.75 | AO87: 385
AM88: 68 | AN88: 77 | AO88: 340
K89: =1 -> 1 | L89: =VLOOKUP(1,J100:T261,11,FALSE) -> 20 | M89: =VLOOKUP(1,J100:V261,13,FALSE) -> 105.2047135 | N89: =ABS(magnet_x9)+magnet_length+M89-coil_length -> 115.2047135 | R89: =Q91+1 -> 9 | Y89: =X91+1 -> 16 | AM89: 69 | AN89: 77.25 | AO89: 385
L90: =L89 -> 20 | M90: =M89 -> 105.2047135 | AM90: 70 | AN90: 77.5 | AO90: 340
J91: 1 | K91: =J91+1 -> 2 | L91: =K91+1 -> 3 | M91: 4 | O91: =N77+1 -> 6 | P91: 7 | Q91: 8 | R91: =VLOOKUP(1,J100:Y264,16,FALSE) -> 6.159215993 | S91: =R89+1 -> 10 | T91: 11 | U91: 12 | V91: 13 | W91: 14 | X91: 15 | Z91: =Y89+1 -> 17 | AA91: 18 | AB91: 19 | AC91: 20 | AD91: 21 | AE91: 22 | AF91: 23 | AM91: 71 | AN91: 77.75 | AO91: 385
Q92: vcoil | R92: =R91 -> 6.159215993 | AA92: instant XCOIL | AM92: 72 | AN92: 78 | AO92: 340
P93: 1 | Q93: =VLOOKUP(1,J100:T263,11,FALSE) -> 20 | R93: =VLOOKUP(1,J100:Y262,16,FALSE) -> 6.159215993 | S93: =VLOOKUP(1,J100:Z264,10,FALSE) -> 160 | U93: 1 | V93: =VLOOKUP(1,J100:Y263,10,FALSE) -> 160 | W93: =100+V93 -> 260 | X93: =PERIECH(W93,21) -> 173.716248 | Z93: 1 | AA93: =VLOOKUP(Z93,J100:AB261,11,FALSE) -> 20 | AB93: =VLOOKUP(1,J100:AB262,19,FALSE) -> 105.2047118 | AC93: =magnet_length+ABS(magnet_x9)+DX_2 -> 165.2047118 | AM93: 73 | AN93: 78.25 | AO93: 385
K94: poisition of magnet | M94: =VLOOKUP(L95,K100:S261,2,FALSE) -> 0 | N94: in screen coordinates | Q94: =Q93 -> 20 | V94: =V93 -> 160 | W94: =W93+1 -> 261 | X94: =PERIECH(W94,21) -> 174.7066362 | AA94: =AA93 -> 20 | AB94: =AB93 -> 105.2047118 | AM94: 74 | AN94: 78.5 | AO94: 340
J95: time | K95: =1 -> 1 | L95: =VLOOKUP(K95,J100:T261,11,FALSE) -> 20 | M95: =M96 -> 173.716248 | N95: =ABS(magnet_x9)+M95 -> 193.716248 | R95: =VLOOKUP(1,J100:X264,15,FALSE) -> 7.923105896 | T95: =(VARXI*magnet_mass)/(magnet_mass+ coil_mass) -> 6.666666667 | W95: DXX | X95: =X94-X93 -> 0.9903882109 | AA95: instant XMAG | AD95: instant i | AM95: 75 | AN95: 78.75 | AO95: 385
L96: =L95 -> 20 | M96: =VLOOKUP(K95,J100:U261,12,FALSE) -> 173.716248 | Q96: vmagnet | R96: =R95 -> 7.923105896 | Z96: 1 | AA96: =VLOOKUP(Z96,J101:AA264,11,FALSE) -> 20 | AB96: =VLOOKUP(1,J100:AB265,18,FALSE) -> 191.2162514 | AC96: 1 | AD96: =VLOOKUP(AC96,J100:T264,11,FALSE) -> 20 | AE96: =VLOOKUP(1,J100:AE265,22,FALSE) -> 0.0007806203695 | AM96: 76 | AN96: 79 | AO96: 340
K97: =K95 -> 1 | L97: =VLOOKUP(K97,J100:T263,11,FALSE) -> 20 | M97: =M96 -> 173.716248 | P97: 1 | Q97: =VLOOKUP(1,J100:T263,11,FALSE) -> 20 | Y97: v coil | AA97: =AA96 -> 20 | AB97: =AB96 -> 191.2162514 | AD97: =AD96 -> 20 | AE97: =AE96 -> 0.0007806203695 | AM97: 77 | AN97: 79.25 | AO97: 385
L98: =L97 -> 20 | Q98: =Q97 -> 20 | T98: =O16 -> 160 | AB98: =magnet_length+DX_1 -> 231.2162514 | AM98: 78 | AN98: 79.5 | AO98: 340
K99: KINHSH MAGNHTH | L99: coil motion | M99: kinhsh pinioy | O99: vmagnet | P99: vcoil | Q99: vcenter of mass | T99: XRONOS | U99: Position of Magnet | V99: position of coil | W99: Position of center of mass | X99: v magnet | Y99: v coil | Z99: v center of mass | AB99: =CELL("contents") -> 0 | AM99: 79 | AN99: 79.75 | AO99: 385 | AU99: Magn vel | BA99: Coil vel
J100: =IF(K100<>"",1,0) -> 0 | K100: =IF(S100=$T$98,T100,"") ->  | S100: 0 | Y100: 0.0001098910981 | AB100: 0 | AM100: 80 | AN100: 80 | AO100: 340
J101: =IF(K101<>"",1,0) -> 0 | S101: 1 | T101: 0.125 | U101: -17.50000347 | V101: 1.771956692e-06 | W101: -5.910596026 | X101: 19.99993594 | Y101: 3.266942423e-05 | Z101: 6.754966887 | AA101: =U101-$U$101 -> 0 | AB101: =V101-$V$101 -> 0 | AC101: =(magnet_mass*X101+coil_mass*Y99)/(magnet_mass+coil_mass) ->  | AE101: -0.03901864039 | AM101: 81 | AN101: 80.25 | AO101: 385
J102: 0 | S102: 2 | T102: 0.25 | U102: -15.00001952 | V102: 9.957120156e-06 | W102: -5.066225166 | X102: 19.99978453 | Y102: 0.0001098910981 | Z102: 6.754966887 | AA102: =U102-$U$101 -> 2.499983951 | AB102: =V102-$V$101 -> 8.185163463e-06 | AC102: 6.666668103 | AE102: -0.06151002709 | AM102: 82 | AN102: 80.5 | AO102: 340
J103: 0 | S103: 3 | T103: 0.375 | U103: -12.50006754 | V103: 3.444766917e-05 | W103: -4.221854305 | X103: 19.99937615 | Y103: 0.0003181648405 | Z103: 6.754966887 | AA103: 4.99993593 | AB103: 3.267571247e-05 | AC103: 6.666480495 | AE103: -0.1043634517 | AM103: 83 | AN103: 80.75 | AO103: 385
J104: 0 | S104: 4 | T104: 0.5 | U104: -10.00021096 | V104: 0.0001075910589 | W104: -3.377483444 | X104: 19.99805772 | Y104: 0.0009905650944 | Z104: 6.754966887 | AA104: 7.499792512 | AB104: 0.0001058191022 | AC104: 6.666092499 | AE104: -0.1958800831 | AM104: 84 | AN104: 81 | AO104: 340
J105: 0 | S105: 5 | T105: 0.625 | U105: -7.500711173 | V105: 0.0003626983118 | W105: -2.533112583 | X105: 19.99256295 | Y105: 0.003792896143 | Z105: 6.754966887 | AA105: 9.999292301 | AB105: 0.0003609263551 | AC105: 6.664399759 | AE105: -0.4244025704 | AM105: 85 | AN105: 81.25 | AO105: 385
J106: 0 | S106: 6 | T106: 0.75 | U106: -5.003070034 | V106: 0.001565717505 | W106: -1.688741722 | X106: 19.95937529 | Y106: 0.02071860378 | Z106: 6.754966887 | AA106: 12.49693344 | AB106: 0.001563945548 | AC106: 6.653785472 | AE106: -1.126680511 | AM106: 86 | AN106: 81.5 | AO106: 340
J107: 0 | S107: 7 | T107: 0.875 | U107: -2.520639557 | V107: 0.0105261743 | W107: -0.8443708609 | X107: 19.64469808 | Y107: 0.1812039788 | Z107: 6.754966887 | AA107: 14.97936392 | AB107: 0.01052440234 | AC107: 6.550761291 | AE107: -3.617976067 | AM107: 87 | AN107: 81.75 | AO107: 385
J108: 0 | S108: 8 | T108: 1 | U108: -0.1738222396 | V108: 0.0886493422 | W108: -1.478765602e-14 | X108: 17.4252347 | Y108: 1.313130305 | Z108: 6.754966887 | AA108: 17.32618123 | AB108: 0.08864757025 | AC108: 5.822223968 | AE108: -6.634271388 | AM108: 88 | AN108: 82 | AO108: 340
J109: 0 | S109: 9 | T109: 1.125 | U109: 1.824954505 | V109: 0.3442732026 | W109: 0.8443708609 | X109: 14.92577193 | Y109: 2.587856316 | Z109: 6.754966887 | AA109: 19.32495798 | AB109: 0.3442714306 | AC109: 5.096059963 | AE109: -3.704472977 | AM109: 89 | AN109: 82.25 | AO109: 385
J110: 0 | S110: 10 | T110: 1.25 | U110: 3.634748782 | V110: 0.6962781211 | W110: 1.688741722 | X110: 14.20155512 | Y110: 2.957206887 | Z110: 6.754966887 | AA110: 21.13475226 | AB110: 0.6962763492 | AC110: 5.609271911 | AE110: -1.705736563 | AM110: 90 | AN110: 82.5 | AO110: 340
J111: 0 | S111: 11 | T111: 1.375 | U111: 5.39687757 | V111: 1.072592439 | W111: 2.533112583 | X111: 14.03082219 | Y111: 3.044280683 | Z111: 6.754966887 | AA111: 22.89688104 | AB111: 1.072590667 | AC111: 6.402178274 | AE111: -0.8451330894 | AM111: 91 | AN111: 82.75 | AO111: 385
J112: 0 | S112: 12 | T112: 1.5 | U112: 7.147306904 | V112: 1.454873479 | W112: 3.377483444 | X112: 13.98514964 | Y112: 3.067573685 | Z112: 6.754966887 | AA112: 24.64731038 | AB112: 1.454871707 | AC112: 6.633187804 | AE112: -0.45801153 | AM112: 92 | AN112: 83 | AO112: 340
J113: 0 | S113: 13 | T113: 1.625 | U113: 8.894393383 | V113: 1.838859375 | W113: 4.221854305 | X113: 13.97075325 | Y113: 3.074915841 | Z113: 6.754966887 | AA113: 26.39439686 | AB113: 1.838857603 | AC113: 6.686438206 | AE113: -0.2686100317 | AM113: 93 | AN113: 83.25 | AO113: 385
J114: 0 | S114: 14 | T114: 1.75 | U114: 10.64035923 | V114: 2.223416792 | W114: 5.066225166 | X114: 13.96551188 | Y114: 3.077588943 | Z114: 6.754966887 | AA114: 28.14036271 | AB114: 2.22341502 | AC114: 6.700219749 | AE114: -0.167846691 | AM114: 94 | AN114: 83.5 | AO114: 340
J115: 0 | S115: 15 | T115: 1.875 | U115: 12.38589592 | V115: 2.608193081 | W115: 5.910596026 | X115: 13.96337289 | Y115: 3.078679825 | Z115: 6.754966887 | AA115: 29.88589939 | AB115: 2.608191309 | AC115: 6.704401524 | AE115: -0.1100877157 | AM115: 95 | AN115: 83.75 | AO115: 385
J116: 0 | S116: 16 | T116: 2 | U116: 14.13125052 | V116: 2.993062233 | W116: 6.754966887 | X116: 13.96242232 | Y116: 3.079164615 | Z116: 6.754966887 | AA116: 31.631254 | AB116: 2.993060461 | AC116: 6.705866737 | AE116: -0.0747596079 | AM116: 96 | AN116: 84 | AO116: 340
J117: 0 | S117: 17 | T117: 2.125 | U117: 15.87652195 | V117: 3.377973806 | W117: 7.599337748 | X117: 13.96197459 | Y117: 3.079392959 | Z117: 6.754966887 | AA117: 33.37652542 | AB117: 3.377972034 | AC117: 6.706444747 | AE117: -0.05186968417 | AM117: 97 | AN117: 84.25 | AO117: 385
J118: 0 | S118: 18 | T118: 2.25 | U118: 17.62175358 | V118: 3.762905676 | W118: 8.443708609 | X118: 13.96175722 | Y118: 3.079503816 | Z118: 6.754966887 | AA118: 35.12175705 | AB118: 3.762903904 | AC118: 6.706695484 | AE118: -0.0362195347 | AM118: 98 | AN118: 84.5 | AO118: 340
J119: 0 | S119: 19 | T119: 2.375 | U119: 19.36696585 | V119: 4.147847415 | W119: 9.28807947 | X119: 13.96165213 | Y119: 3.079557415 | Z119: 6.754966887 | AA119: 36.86696933 | AB119: 4.147845643 | AC119: 6.706812682 | AE119: -0.02492807377 | AM119: 99 | AN119: 84.75 | AO119: 385
J120: 0 | S120: 20 | T120: 2.5 | U120: 21.11216895 | V120: 4.532793834 | W120: 10.13245033 | X120: 13.96160412 | Y120: 3.079581901 | Z120: 6.754966887 | AA120: 38.61217243 | AB120: 4.532792062 | AC120: 6.706870583 | AE120: -0.01629625538 | AM120: 100 | AN120: 85 | AO120: 340
J121: 0 | S121: 21 | T121: 2.625 | U121: 22.85736809 | V121: 4.917742274 | W121: 10.97682119 | X121: 13.96158546 | Y121: 3.079591416 | Z121: 6.754966887 | AA121: 40.35737156 | AB121: 4.917740502 | AC121: 6.706900097 | AE121: -0.009250875194 | AM121: 101 | AN121: 85.25 | AO121: 385
J122: 0 | S122: 22 | T122: 2.75 | U122: 24.6025659 | V122: 5.302691393 | W122: 11.82119205 | X122: 13.96158088 | Y122: 3.079593753 | Z122: 6.754966887 | AA122: 42.10256937 | AB122: 5.302689621 | AC122: 6.706914892 | AE122: -0.003051957607 | AM122: 102 | AN122: 85.5 | AO122: 340
J123: 0 | S123: 23 | T123: 2.875 | U123: 26.34776348 | V123: 5.687640623 | W123: 12.66556291 | X123: 13.96158054 | Y123: 3.079593922 | Z123: 6.754966887 | AA123: 43.84776696 | AB123: 5.687638851 | AC123: 6.706921125 | AE123: 0.002876351925 | AM123: 103 | AN123: 85.75 | AO123: 385
J124: 0 | S124: 24 | T124: 3 | U124: 28.09296087 | V124: 6.072589958 | W124: 13.50993377 | X124: 13.96157621 | Y124: 3.079596132 | Z124: 6.754966887 | AA124: 45.59296434 | AB124: 6.072588186 | AC124: 6.706921239 | AE124: 0.009059568414 | AM124: 104 | AN124: 86 | AO124: 340
J125: 0 | S125: 25 | T125: 3.125 | U125: 29.83815697 | V125: 6.457539945 | W125: 14.35430464 | X125: 13.96155815 | Y125: 3.079605345 | Z125: 6.754966887 | AA125: 47.33816045 | AB125: 6.457538173 | AC125: 6.70691533 | AE125: 0.01607051329 | AM125: 105 | AN125: 86.25 | AO125: 385
J126: 0 | S126: 26 | T126: 3.25 | U126: 31.58334922 | V126: 6.842491897 | W126: 15.1986755 | X126: 13.96151131 | Y126: 3.079629232 | Z126: 6.754966887 | AA126: 49.0833527 | AB126: 6.842490125 | AC126: 6.706901192 | AE126: 0.02464203527 | AM126: 106 | AN126: 86.5 | AO126: 340
J127: 0 | S127: 27 | T127: 3.375 | U127: 33.3285325 | V127: 7.227448425 | W127: 16.04304636 | X127: 13.9614085 | Y127: 3.079681667 | Z127: 6.754966887 | AA127: 50.82853598 | AB127: 7.227446653 | AC127: 6.706873062 | AE127: 0.03583337877 | AM127: 107 | AN127: 86.75 | AO127: 385
J128: 0 | S128: 28 | T128: 3.5 | U128: 35.07369684 | V128: 7.612414612 | W128: 16.88741722 | X128: 13.9611957 | Y128: 3.079790193 | Z128: 6.754966887 | AA128: 52.57370031 | AB128: 7.61241284 | AC128: 6.706818055 | AE128: 0.05131656716 | AM128: 108 | AN128: 87 | AO128: 340
J129: 0 | S129: 29 | T129: 3.625 | U129: 36.81882223 | V129: 7.997400664 | W129: 17.73178808 | X129: 13.96075764 | Y129: 3.080013601 | Z129: 6.754966887 | AA129: 54.3188257 | AB129: 7.997398892 | AC129: 6.706706993 | AE129: 0.07391788851 | AM129: 109 | AN129: 87.25 | AO129: 385
J130: 0 | S130: 30 | T130: 3.75 | U130: 38.5638663 | V130: 8.382428185 | W130: 18.57615894 | X130: 13.9598292 | Y130: 3.080487108 | Z130: 6.754966887 | AA130: 56.06386978 | AB130: 8.382426413 | AC130: 6.706469862 | AE130: 0.1087149205 | AM130: 110 | AN130: 87.5 | AO130: 340
J131: 0 | S131: 31 | T131: 3.875 | U131: 40.30873281 | V131: 8.767546265 | W131: 19.4205298 | X131: 13.95774626 | Y131: 3.081549405 | Z131: 6.754966887 | AA131: 57.80873629 | AB131: 8.767544493 | AC131: 6.705924489 | AE131: 0.1653991449 | AM131: 111 | AN131: 87.75 | AO131: 385
J132: 0 | K132: =IF(S132=$T$98,T132,"") ->  | S132: 32 | T132: 4 | U132: 42.05318254 | V132: 9.152876904 | W132: 20.26490066 | X132: 13.95266843 | Y132: 3.084139099 | Z132: 6.754966887 | AA132: 59.55318602 | AB132: 9.152875132 | AC132: 6.70454755 | AE132: 0.2636522134 | AM132: 112 | AN132: 88 | AO132: 340
J133: 0 | S133: 33 | T133: 4.125 | U133: 43.79655217 | V133: 9.538758396 | W133: 21.10927152 | X133: 13.93885752 | Y133: 3.091182665 | Z133: 6.754966887 | AA133: 61.29655564 | AB133: 9.538756624 | AC133: =(magnet_mass*X133+coil_mass*Y131)/(magnet_mass+coil_mass) -> 6.70065211 | AE133: 0.445780996 | AM133: 113 | AN133: 88.25 | AO133: 385
J134: 0 | S134: 34 | T134: 4.25 | U134: 45.53675235 | V134: 9.9262563 | W134: 21.95364238 | X134: 13.89602877 | Y134: 3.113025326 | Z134: 6.754966887 | AA134: 63.03675583 | AB134: 9.926254528 | AC134: 6.688102324 | AE134: 0.8044943843 | AM134: 114 | AN134: 88.5 | AO134: 340
J135: 0 | S135: 35 | T135: 4.375 | U135: 47.26634459 | V135: 10.31916426 | W135: 22.79801325 | X135: 13.7461112 | Y135: 3.189483289 | Z135: 6.754966887 | AA135: 64.76634807 | AB135: 10.31916248 | AC135: 6.642825509 | AE135: 1.512275267 | AM135: 115 | AN135: 88.75 | AO135: 385
J136: 0 | S136: 36 | T136: 4.5 | U136: 48.95833087 | V136: 10.73125126 | W136: 23.64238411 | X136: 13.22817164 | Y136: 3.453632462 | Z136: 6.754966887 | AA136: 66.45833435 | AB136: 10.73124948 | AC136: 6.484740765 | AE136: 2.59669235 | AM136: 116 | AN136: 89 | AO136: 340
J137: 0 | S137: 37 | T137: 4.625 | U137: 50.54271475 | V137: 11.19821548 | W137: 24.48675497 | X137: 12.01331261 | Y137: 4.073210569 | Z137: 6.754966887 | AA137: 68.04271823 | AB137: 11.1982137 | AC137: 6.130759729 | AE137: 3.083389226 | AM137: 117 | AN137: 89.25 | AO137: 385
J138: 0 | S138: 38 | T138: 4.75 | U138: 51.9534499 | V138: 11.75374055 | W138: 25.33112583 | X138: 10.60333191 | Y138: 4.792300728 | Z138: 6.754966887 | AA138: 69.45345338 | AB138: 11.75373878 | AC138: 5.83686561 | AE138: 2.404258842 | AM138: 118 | AN138: 89.5 | AO138: 340
J139: 0 | S139: 39 | T139: 4.875 | U139: 53.21288066 | V139: 12.38643087 | W139: 26.17549669 | X139: 9.628587599 | Y139: 5.289420324 | Z139: 6.754966887 | AA139: 70.71288413 | AB139: 12.38642909 | AC139: 5.925002912 | AE139: 1.619391773 | AM139: 119 | AN139: 89.75 | AO139: 385
J140: 0 | S140: 40 | T140: 5 | U140: 54.37721904 | V140: 13.06761829 | W140: 27.01986755 | X140: 9.051526459 | Y140: 5.583721506 | Z140: 6.754966887 | AA140: 71.87722251 | AB140: 13.06761652 | AC140: 6.212042639 | AE140: 1.11173478 | AM140: 120 | AN140: 90 | AO140: 340
J141: 0 | S141: 41 | T141: 5.125 | U141: 55.48524797 | V141: 13.77752354 | W141: 27.86423841 | X141: 8.704771326 | Y141: 5.760566624 | Z141: 6.754966887 | AA141: 72.98525144 | AB141: 13.77752176 | AC141: 6.427870658 | AE141: 0.8047532413 | AM141: 121 | AN141: 90.25 | AO141: 385
J142: 0 | S142: 42 | T142: 5.25 | U142: 56.5586549 | V142: 14.505086 | W142: 28.70860927 | X142: 8.48544136 | Y142: 5.872424906 | Z142: 6.754966887 | AA142: 74.05865837 | AB142: 14.50508423 | AC142: 6.550961457 | AE142: 0.6113777325 | AM142: 122 | AN142: 90.5 | AO142: 340
J143: 0 | S143: 43 | T143: 5.375 | U143: 57.60964195 | V143: 15.2440826 | W143: 29.55298013 | X143: 8.339708168 | Y143: 5.946748834 | Z143: 6.754966887 | AA143: 75.10964543 | AB143: 15.24408083 | AC143: 6.620280472 | AE143: 0.4824214319 | AM143: 123 | AN143: 90.75 | AO143: 385
J144: 0 | S144: 44 | T144: 5.5 | U144: 58.64543687 | V144: 15.99082719 | W144: 30.39735099 | X144: 8.238888233 | Y144: 5.998167001 | Z144: 6.754966887 | AA144: 76.14544035 | AB144: 15.99082542 | AC144: 6.661246015 | AE144: 0.3918269251 | AM144: 124 | AN144: 91 | AO144: 340
J145: 0 | S145: 45 | T145: 5.625 | U145: 59.67055543 | V145: 16.74301673 | W145: 31.24172185 | X145: 8.166869813 | Y145: 6.034896395 | Z145: 6.754966887 | AA145: 77.17055891 | AB145: 16.74301496 | AC145: 6.686789161 | AE145: 0.3253547692 | AM145: 125 | AN145: 91.25 | AO145: 385
J146: 0 | S146: 46 | T146: 5.75 | U146: 60.68795146 | V146: 17.49914475 | W146: 32.08609272 | X146: 8.114097738 | Y146: 6.061810154 | Z146: 6.754966887 | AA146: 78.18795494 | AB146: 17.49914298 | AC146: 6.703477247 | AE146: 0.274827089 | AM146: 126 | AN146: 91.5 | AO146: 340
J147: 0 | S147: 47 | T147: 5.875 | U147: 61.69963124 | V147: 18.25818807 | W147: 32.93046358 | X147: 8.074625768 | Y147: 6.081940858 | Z147: 6.754966887 | AA147: 79.19963471 | AB147: 18.2581863 | AC147: 6.714806186 | AE147: 0.2353062136 | AM147: 127 | AN147: 91.75 | AO147: 385
J148: 0 | S148: 48 | T148: 6 | U148: 62.70699976 | V148: 19.01943012 | W148: 33.77483444 | X148: 8.044599392 | Y148: 6.09725431 | Z148: 6.754966887 | AA148: 80.20700324 | AB148: 19.01942835 | AC148: 6.7227399 | AE148: 0.2036711848 | AM148: 128 | AN148: 92 | AO148: 340
J149: 0 | S149: 49 | T149: 6.125 | U149: 63.71106585 | V149: 19.78235642 | W149: 34.6192053 | X149: 8.021433321 | Y149: 6.109069006 | Z149: 6.754966887 | AA149: 81.21106932 | AB149: 19.78235465 | AC149: 6.728438346 | AE149: 0.1778673208 | AM149: 129 | AN149: 92.25 | AO149: 385
J150: 0 | S150: 50 | T150: 6.25 | U150: 64.71256889 | V150: 20.54658986 | W150: 35.46357616 | X150: 8.003343533 | Y150: 6.118294798 | Z150: 6.754966887 | AA150: 82.21257237 | AB150: 20.54658809 | AC150: 6.732617384 | AE150: 0.1564924 | AM150: 130 | AN150: 92.5 | AO150: 340
J151: 0 | S151: 51 | T151: 6.375 | U151: 65.71206023 | V151: 21.31184928 | W151: 36.30794702 | X151: 7.989069291 | Y151: 6.125574662 | Z151: 6.754966887 | AA151: 83.21206371 | AB151: 21.31184751 | AC151: 6.735735768 | AE151: 0.1385586746 | AM151: 131 | AN151: 92.75 | AO151: 385
J152: 0 | S152: 52 | T152: 6.5 | U152: 66.70995699 | V152: 22.07792193 | W152: 37.15231788 | X152: 7.97770161 | Y152: 6.131372179 | Z152: 6.754966887 | AA152: 84.20996047 | AB152: 22.07792016 | AC152: 6.738097069 | AE152: 0.1233506803 | AM152: 132 | AN152: 93 | AO152: 340
J153: 0 | S153: 53 | T153: 6.625 | U153: 67.70657873 | V153: 22.84464485 | W153: 37.99668874 | X153: 7.968573865 | Y153: 6.136027329 | Z153: 6.754966887 | AA153: 85.20658221 | AB153: 22.84464307 | AC153: 6.739907729 | AE153: 0.1103373093 | AM153: 133 | AN153: 93.25 | AO153: 385
J154: 0 | S154: 54 | T154: 6.75 | U154: 68.70217295 | V154: 23.61189179 | W154: 38.8410596 | X154: 7.961189968 | Y154: 6.139793116 | Z154: 6.754966887 | AA154: 86.20217643 | AB154: 23.61189002 | AC154: 6.741311442 | AE154: 0.09911572283 | AM154: 134 | AN154: 93.5 | AO154: 340
J155: 0 | S155: 55 | T155: 6.875 | U155: 69.69693319 | V155: 24.37956408 | W155: 39.68543046 | X155: 7.955176036 | Y155: 6.142860222 | Z155: 6.754966887 | AA155: 87.19693666 | AB155: 24.3795623 | AC155: 6.742410231 | AE155: 0.08937454924 | AM155: 135 | AN155: 93.75 | AO155: 385
J156: 0 | S156: 56 | T156: 7 | U156: 70.69101208 | V156: 25.14758384 | W156: 40.52980132 | X156: 7.95024713 | Y156: 6.145373964 | Z156: 6.754966887 | AA156: 88.19101556 | AB156: 25.14758207 | AC156: 6.743277788 | AE156: 0.08086910689 | AM156: 136 | AN156: 94 | AO156: 340
J157: 0 | S157: 57 | T157: 7.125 | U157: 71.68453097 | V157: 25.9158892 | W157: 41.37417219 | X157: 7.946183951 | Y157: 6.147446185 | Z157: 6.754966887 | AA157: 89.18453445 | AB157: 25.91588743 | AC157: 6.743968132 | AE157: 0.07340432263 | AM157: 137 | AN157: 94.25 | AO157: 385
J158: 0 | S158: 58 | T158: 7.25 | U158: 72.67758699 | V158: 26.68443063 | W158: 42.21854305 | X158: 7.942816216 | Y158: 6.14916373 | Z158: 6.754966887 | AA158: 90.17759047 | AB158: 26.68442886 | AC158: 6.744521381 | AE158: 0.06682269689 | AM158: 138 | AN158: 94.5 | AO158: 340
J159: 0 | S159: 59 | T159: 7.375 | U159: 73.67025841 | V159: 27.45316821 | W159: 43.06291391 | X159: 7.940010645 | Y159: 6.150594571 | Z159: 6.754966887 | AA159: 91.17026189 | AB159: 27.45316644 | AC159: 6.744967671 | AE159: 0.0609956525 | AM159: 139 | AN159: 94.75 | AO159: 385
J160: 0 | S160: 60 | T160: 7.5 | U160: 74.66260867 | V160: 28.22206958 | W160: 43.90728477 | X160: 7.937662153 | Y160: 6.151792302 | Z160: 6.754966887 | AA160: 92.16261215 | AB160: 28.22206781 | AC160: 6.745329871 | AE160: 0.05581719985 | AM160: 140 | AN160: 95 | AO160: 340
J161: 0 | S161: 61 | T161: 7.625 | U161: 75.6546895 | V161: 28.99110836 | W161: 44.75165563 | X161: 7.935687331 | Y161: 6.152799461 | Z161: 6.754966887 | AA161: 93.15469297 | AB161: 28.99110658 | AC161: 6.745625491 | AE161: 0.05119921902 | AM161: 141 | AN161: 95.25 | AO161: 385
J162: 0 | S162: 62 | T162: 7.75 | U162: 76.64654328 | V162: 29.76026293 | W162: 45.59602649 | X162: 7.93401956 | Y162: 6.153650025 | Z162: 6.754966887 | AA162: 94.14654675 | AB162: 29.76026116 | AC162: 6.745868055 | AE162: 0.04706789109 | AM162: 142 | AN162: 95.5 | AO162: 340
J163: 0 | S163: 63 | T163: 7.875 | U163: 77.63820494 | V163: 30.52951548 | W163: 46.44039735 | X163: 7.932605321 | Y163: 6.154371286 | Z163: 6.754966887 | AA163: 95.13820841 | AB163: 30.52951371 | AC163: 6.746068081 | AE163: 0.04336096028 | AM163: 143 | AN163: 95.75 | AO163: 385
J164: 0 | K164: =IF(S164=$T$98,T164,"") ->  | S164: 64 | T164: 8 | U164: 78.62970336 | V164: 31.29885129 | W164: 47.28476821 | X164: 7.931401386 | Y164: 6.154985293 | Z164: 6.754966887 | AA164: 96.12970684 | AB164: 31.29884951 | AC164: 6.746233812 | AE164: 0.04002560625 | AM164: 144 | AN164: 96 | AO164: 340
J165: =IF(K165<>"",1,0) -> 0 | S165: 65 | T165: 8.125 | U165: 79.62106257 | V165: 32.06825809 | W165: 48.12913907 | X165: 7.93037266 | Y165: 6.155509943 | Z165: 6.754966887 | AA165: 97.12106605 | AB165: 32.06825632 | AC165: =(magnet_mass*X165+coil_mass*Y163)/(magnet_mass+coil_mass) -> 6.746371744 | AE165: 0.03701677117 | AM165: 145 | AN165: 96.25 | AO165: 385
J166: 0 | S166: 66 | T166: 8.25 | U166: 80.61230263 | V166: 32.83772566 | W166: 48.97350993 | X166: 7.92949051 | Y166: 6.15595984 | Z166: 6.754966887 | AA166: =U166-$U$101 -> 98.1123061 | AB166: =V166-$V$101 -> 32.83772389 | AC166: 6.746487032 | AE166: 0.03429583043 | AM166: 146 | AN166: 96.5 | AO166: 340
J167: 0 | S167: 67 | T167: 8.375 | U167: 81.60344033 | V167: 33.60724543 | W167: 49.81788079 | X167: 7.92873147 | Y167: 6.15634695 | Z167: 6.754966887 | AA167: 99.1034438 | AB167: 33.60724366 | AC167: 6.746583786 | AE167: 0.03182952619 | AM167: 147 | AN167: 96.75 | AO167: 385
J168: 0 | S168: 68 | T168: 8.5 | U168: 82.59448981 | V168: 34.37681019 | W168: 50.66225166 | X168: 7.928076224 | Y168: 6.156681126 | Z168: 6.754966887 | AA168: 100.0944933 | AB168: 34.37680842 | AC168: 6.746665301 | AE168: 0.02958910448 | AM168: 148 | AN168: 97 | AO168: 340
J169: 0 | S169: 69 | T169: 8.625 | U169: 83.58546304 | V169: 35.14641385 | W169: 51.50662252 | X169: 7.927508805 | Y169: 6.15697051 | Z169: 6.754966887 | AA169: 101.0854665 | AB169: 35.14641208 | AC169: 6.746734235 | AE169: 0.02754961149 | AM169: 149 | AN169: 97.25 | AO169: 385
J170: 0 | S170: 70 | T170: 8.75 | U170: 84.57637012 | V170: 35.91605124 | W170: 52.35099338 | X170: 7.927015959 | Y170: 6.157221861 | Z170: 6.754966887 | AA170: 102.0763736 | AB170: 35.91604947 | AC170: 6.746792737 | AE170: 0.02568931556 | AM170: 150 | AN170: 97.5 | AO170: 340
J171: 0 | S171: 71 | T171: 8.875 | U171: 85.56721967 | V171: 36.68571797 | W171: 53.19536424 | X171: 7.926586648 | Y171: 6.15744081 | Z171: 6.754966887 | AA171: 103.0672231 | AB171: 36.6857162 | AC171: 6.746842556 | AE171: 0.02398922948 | AM171: 151 | AN171: 97.75 | AO171: 385
J172: 0 | S172: 72 | T172: 9 | U172: 86.55801904 | V172: 37.45541029 | W172: 54.0397351 | X172: 7.926211639 | Y172: 6.157632064 | Z172: 6.754966887 | AA172: 104.0580225 | AB172: 37.45540852 | AC172: 6.74688512 | AE172: 0.02243271331 | AM172: 152 | AN172: 98 | AO172: 340
J173: 0 | S173: 73 | T173: 9.125 | U173: 87.54877452 | V173: 38.22512499 | W173: 54.88410596 | X173: 7.925883187 | Y173: 6.157799574 | Z173: 6.754966887 | AA173: 105.048778 | AB173: 38.22512322 | AC173: 6.746921602 | AE173: 0.02100514232 | AM173: 153 | AN173: 98.25 | AO173: 385
J174: 0 | S174: 74 | T174: 9.25 | U174: 88.53949151 | V174: 38.99485933 | W174: 55.72847682 | X174: 7.92559477 | Y174: 6.157946667 | Z174: 6.754966887 | AA174: 106.039495 | AB174: 38.99485756 | AC174: 6.746952966 | AE174: 0.01969362819 | AM174: 154 | AN174: 98.5 | AO174: 340
J175: 0 | S175: 75 | T175: 9.375 | U175: 89.53017465 | V175: 39.76461093 | W175: 56.57284768 | X175: 7.925340877 | Y175: 6.158076153 | Z175: 6.754966887 | AA175: 107.0301781 | AB175: 39.76460916 | AC175: 6.746980009 | AE175: 0.01848678364 | AM175: 155 | AN175: 98.75 | AO175: 385
J176: 0 | S176: 76 | T176: 9.5 | U176: 90.52082797 | V176: 40.53437774 | W176: 57.41721854 | X176: 7.925116841 | Y176: 6.158190411 | Z176: 6.754966887 | AA176: 108.0208314 | AB176: 40.53437596 | AC176: 6.747003392 | AE176: 0.01737452318 | AM176: 156 | AN176: 99 | AO176: 340
J177: 0 | S177: 77 | T177: 9.625 | U177: 91.51145494 | V177: 41.30415798 | W177: 58.2615894 | X177: 7.924918693 | Y177: 6.158291467 | Z177: 6.754966887 | AA177: 109.0114584 | AB177: 41.30415621 | AC177: 6.747023666 | AE177: 0.01634789344 | AM177: 157 | AN177: 99.25 | AO177: 385
J178: 0 | S178: 78 | T178: 9.75 | U178: 92.50205858 | V178: 42.07395013 | W178: 59.10596026 | X178: 7.92474305 | Y178: 6.158381044 | Z178: 6.754966887 | AA178: 110.0020621 | AB178: 42.07394835 | AC178: 6.747041291 | AE178: 0.01539892851 | AM178: 158 | AN178: 99.5 | AO178: 340
J179: 0 | S179: 79 | T179: 9.875 | U179: 93.49264152 | V179: 42.84375283 | W179: 59.95033113 | X179: 7.924587021 | Y179: 6.158460619 | Z179: 6.754966887 | AA179: 110.992645 | AB179: 42.84375105 | AC179: 6.747056651 | AE179: 0.01452052593 | AM179: 159 | AN179: 99.75 | AO179: 385
J180: 0 | S180: 80 | T180: 10 | U180: 94.48320605 | V180: 43.61356492 | W180: 60.79470199 | X180: 7.924448127 | Y180: 6.158531455 | Z180: 6.754966887 | AA180: 111.9832095 | AB180: 43.61356314 | AC180: 6.747070072 | AE180: 0.01370634022 | AM180: 160 | AN180: 100 | AO180: 340
J181: 0 | S181: 81 | T181: 10.125 | U181: 95.47375417 | V181: 44.38338537 | W181: 61.63907285 | X181: 7.924324236 | Y181: 6.15859464 | Z181: 6.754966887 | AA181: 112.9737576 | AB181: 44.3833836 | AC181: 6.747081825 | AE181: 0.01295069105 | AM181: 161 | AN181: 100.25 | AO181: 385
J182: 0 | S182: 82 | T182: 10.25 | U182: 96.46428765 | V182: 45.1532133 | W182: 62.48344371 | X182: 7.924213513 | Y182: 6.158651108 | Z182: 6.754966887 | AA182: 113.9642911 | AB182: 45.15321152 | AC182: 6.747092141 | AE182: 0.01224848394 | AM182: 162 | AN182: 100.5 | AO182: 340
J183: 0 | S183: 83 | T183: 10.375 | U183: 97.45480803 | V183: 45.9230479 | W183: 63.32781457 | X183: 7.924114372 | Y183: 6.15870167 | Z183: 6.754966887 | AA183: 114.9548115 | AB183: 45.92304613 | AC183: 6.747101217 | AE183: 0.01159514151 | AM183: 163 | AN183: 100.75 | AO183: 385
J184: 0 | S184: 84 | T184: 10.5 | U184: 98.44531667 | V184: 46.6928885 | W184: 64.17218543 | X184: 7.924025439 | Y184: 6.158747026 | Z184: 6.754966887 | AA184: 115.9453201 | AB184: 46.69288673 | AC184: 6.747109218 | AE184: 0.01098654381 | AM184: 164 | AN184: 101 | AO184: 340
J185: 0 | S185: 85 | T185: 10.625 | U185: 99.43581477 | V185: 47.46273447 | W185: 65.01655629 | X185: 7.923945522 | Y185: 6.158787784 | Z185: 6.754966887 | AA185: 116.9358182 | AB185: 47.4627327 | AC185: 6.747116288 | AE185: 0.01041897624 | AM185: 165 | AN185: 101.25 | AO185: 385
J186: 0 | S186: 86 | T186: 10.75 | U186: 100.4263034 | V186: 48.23258527 | W186: 65.86092715 | X186: 7.923873584 | Y186: 6.158824472 | Z186: 6.754966887 | AA186: 117.9263069 | AB186: 48.2325835 | AC186: 6.747122545 | AE186: 0.009889084259 | AM186: 166 | AN186: 101.5 | AO186: 340
J187: 0 | S187: 87 | T187: 10.875 | U187: 101.4167835 | V187: 49.00244044 | W187: 66.70529801 | X187: 7.923808721 | Y187: 6.158857552 | Z187: 6.754966887 | AA187: 118.9167869 | AB187: 49.00243866 | AC187: 6.747128096 | AE187: 0.009393833595 | AM187: 167 | AN187: 101.75 | AO187: 385
J188: 0 | S188: 88 | T188: 11 | U188: 102.4072558 | V188: 49.77229953 | W188: 67.54966887 | X188: 7.923750143 | Y188: 6.158887427 | Z188: 6.754966887 | AA188: 119.9072593 | AB188: 49.77229776 | AC188: 6.747133029 | AE188: 0.00893047548 | AM188: 168 | AN188: 102 | AO188: 340
J189: 0 | S189: 89 | T189: 11.125 | U189: 103.3977212 | V189: 50.54216217 | W189: 68.39403974 | X189: 7.923697158 | Y189: 6.158914449 | Z189: 6.754966887 | AA189: 120.8977247 | AB189: 50.5421604 | AC189: 6.747137421 | AE189: 0.008496516056 | AM189: 169 | AN189: 102.25 | AO189: 385
J190: 0 | S190: 90 | T190: 11.25 | U190: 104.3881803 | V190: 51.31202803 | W190: 69.2384106 | X190: 7.923649161 | Y190: 6.158938928 | Z190: 6.754966887 | AA190: 121.8881838 | AB190: 51.31202626 | AC190: 6.747141338 | AE190: 0.008089689453 | AM190: 170 | AN190: 102.5 | AO190: 340
J191: 0 | S191: 91 | T191: 11.375 | U191: 105.3786337 | V191: 52.08189681 | W191: 70.08278146 | X191: 7.923605616 | Y191: 6.158961136 | Z191: 6.754966887 | AA191: 122.8786372 | AB191: 52.08189504 | AC191: 6.747144838 | AE191: 0.007707934056 | AM191: 171 | AN191: 102.75 | AO191: 385
J192: 0 | S192: 92 | T192: 11.5 | U192: 106.3690819 | V192: 52.85176823 | W192: 70.92715232 | X192: 7.923566056 | Y192: 6.158981312 | Z192: 6.754966887 | AA192: 123.8690854 | AB192: 52.85176646 | AC192: 6.747147971 | AE192: 0.007349371521 | AM192: 172 | AN192: 103 | AO192: 340
J193: 0 | S193: 93 | T193: 11.625 | U193: 107.3595254 | V193: 53.62164206 | W193: 71.77152318 | X193: 7.923530065 | Y193: 6.158999667 | Z193: 6.754966887 | AA193: 124.8595288 | AB193: 53.62164029 | AC193: 6.747150779 | AE193: 0.007012288211 | AM193: 173 | AN193: 103.25 | AO193: 385
J194: 0 | S194: 94 | T194: 11.75 | U194: 108.3499645 | V194: 54.39151808 | W194: 72.61589404 | X194: 7.923497277 | Y194: 6.159016389 | Z194: 6.754966887 | AA194: 125.849968 | AB194: 54.39151631 | AC194: 6.7471533 | AE194: 0.006695118733 | AM194: 174 | AN194: 103.5 | AO194: 340
J195: 0 | S195: 95 | T195: 11.875 | U195: 109.3403998 | V195: 55.1613961 | W195: 73.4602649 | X195: 7.923467368 | Y195: 6.159031642 | Z195: 6.754966887 | AA195: 126.8404033 | AB195: 55.16139433 | AC195: 6.747155567 | AE195: 0.006396431311 | AM195: 175 | AN195: 103.75 | AO195: 385
J196: 0 | K196: =IF(S196=$T$98,T196,"") ->  | S196: 96 | T196: 12 | U196: 110.3308315 | V196: 55.93127594 | W196: 74.30463576 | X196: 7.923440051 | Y196: 6.159045574 | Z196: 6.754966887 | AA196: 127.830835 | AB196: 55.93127417 | AC196: 6.747157609 | AE196: 0.006114914783 | AM196: 176 | AN196: 104 | AO196: 340
J197: 0 | S197: 97 | T197: 12.125 | U197: 111.3212599 | V197: 56.70115744 | W197: 75.14900662 | X197: 7.923415069 | Y197: 6.159058315 | Z197: 6.754966887 | AA197: 128.8212634 | AB197: 56.70115567 | AC197: =(magnet_mass*X197+coil_mass*Y195)/(magnet_mass+coil_mass) -> 6.747159451 | AE197: 0.005849367003 | AM197: 177 | AN197: 104.25 | AO197: 385
J198: 0 | S198: 98 | T198: 12.25 | U198: 112.3116853 | V198: 57.47104047 | W198: 75.99337748 | X198: 7.923392197 | Y198: 6.15906998 | Z198: 6.754966887 | AA198: 129.8116888 | AB198: 57.4710387 | AC198: 6.747161115 | AE198: 0.005598684501 | AM198: 178 | AN198: 104.5 | AO198: 340
J199: 0 | S199: 99 | T199: 12.375 | U199: 113.302108 | V199: 58.2409249 | W199: 76.83774834 | X199: 7.92337123 | Y199: 6.159080673 | Z199: 6.754966887 | AA199: 130.8021115 | AB199: 58.24092313 | AC199: 6.74716262 | AE199: 0.005361853235 | AM199: 179 | AN199: 104.75 | AO199: 385
J200: 0 | S200: 100 | T200: 12.5 | U200: 114.2925282 | V200: 59.0108106 | W200: 77.68211921 | X200: 7.923351988 | Y200: 6.159090486 | Z200: 6.754966887 | AA200: 131.7925317 | AB200: 59.01080883 | AC200: 6.747163983 | AE200: 0.005137940312 | AM200: 180 | AN200: 105 | AO200: 340
J201: 0 | S201: 101 | T201: 12.625 | U201: 115.2829461 | V201: 59.78069749 | W201: 78.52649007 | X201: 7.923334311 | Y201: 6.159099502 | Z201: 6.754966887 | AA201: 132.7829496 | AB201: 59.78069571 | AC201: 6.747165219 | AE201: 0.004926086577 | AM201: 181 | AN201: 105.25 | AO201: 385
J202: 0 | S202: 102 | T202: 12.75 | U202: 116.2733619 | V202: 60.55058545 | W202: 79.37086093 | X202: 7.923318052 | Y202: 6.159107794 | Z202: 6.754966887 | AA202: 133.7733653 | AB202: 60.55058368 | AC202: 6.747166341 | AE202: 0.004725499948 | AM202: 182 | AN202: 105.5 | AO202: 340
J203: 0 | S203: 103 | T203: 12.875 | U203: 117.2637757 | V203: 61.32047441 | W203: 80.21523179 | X203: 7.923303082 | Y203: 6.159115428 | Z203: 6.754966887 | AA203: 134.7637791 | AB203: 61.32047263 | AC203: 6.747167362 | AE203: 0.004535449433 | AM203: 183 | AN203: 105.75 | AO203: 385
J204: 0 | S204: 104 | T204: 13 | U204: 118.2541877 | V204: 62.09036428 | W204: 81.05960265 | X204: 7.923289285 | Y204: 6.159122465 | Z204: 6.754966887 | AA204: 135.7541912 | AB204: 62.09036251 | AC204: 6.747168291 | AE204: 0.004355259746 | AM204: 184 | AN204: 106 | AO204: 340
J205: 0 | S205: 105 | T205: 13.125 | U205: 119.244598 | V205: 62.860255 | W205: 81.90397351 | X205: 7.923276556 | Y205: 6.159128956 | Z205: 6.754966887 | AA205: 136.7446015 | AB205: 62.86025323 | AC205: 6.747169137 | AE205: 0.004184306449 | AM205: 185 | AN205: 106.25 | AO205: 385
J206: 0 | S206: 106 | T206: 13.25 | U206: 120.2350069 | V206: 63.6301465 | W206: 82.74834437 | X206: 7.923264801 | Y206: 6.159134952 | Z206: 6.754966887 | AA206: 137.7350103 | AB206: 63.63014473 | AC206: 6.74716991 | AE206: 0.004022011576 | AM206: 186 | AN206: 106.5 | AO206: 340
J207: 0 | S207: 107 | T207: 13.375 | U207: 121.2254143 | V207: 64.40003872 | W207: 83.59271523 | X207: 7.923253935 | Y207: 6.159140493 | Z207: 6.754966887 | AA207: 138.7254178 | AB207: 64.40003695 | AC207: 6.747170616 | AE207: 0.003867839675 | AM207: 187 | AN207: 106.75 | AO207: 385
J208: 0 | S208: 108 | T208: 13.5 | U208: 122.2158204 | V208: 65.16993161 | W208: 84.43708609 | X208: 7.923243881 | Y208: 6.159145621 | Z208: 6.754966887 | AA208: 139.7158239 | AB208: 65.16992983 | AC208: 6.747171261 | AE208: 0.003721294228 | AM208: 188 | AN208: 107 | AO208: 340
J209: 0 | S209: 109 | T209: 13.625 | U209: 123.2062253 | V209: 65.93982511 | W209: 85.28145695 | X209: 7.923234571 | Y209: 6.159150369 | Z209: 6.754966887 | AA209: 140.7062288 | AB209: 65.93982334 | AC209: 6.747171852 | AE209: 0.003581914411 | AM209: 189 | AN209: 107.25 | AO209: 385
J210: 0 | S210: 110 | T210: 13.75 | U210: 124.1966291 | V210: 66.70971918 | W210: 86.12582781 | X210: 7.923225941 | Y210: 6.15915477 | Z210: 6.754966887 | AA210: 141.6966325 | AB210: 66.70971741 | AC210: 6.747172394 | AE210: 0.003449272158 | AM210: 190 | AN210: 107.5 | AO210: 340
J211: 0 | S211: 111 | T211: 13.875 | U211: 125.1870318 | V211: 67.47961379 | W211: 86.97019868 | X211: 7.923217935 | Y211: 6.159158853 | Z211: 6.754966887 | AA211: 142.6870353 | AB211: 67.47961202 | AC211: 6.747172891 | AE211: 0.003322969492 | AM211: 191 | AN211: 107.75 | AO211: 385
J212: 0 | S212: 112 | T212: 14 | U212: 126.1774336 | V212: 68.24950888 | W212: 87.81456954 | X212: 7.923210501 | Y212: 6.159162644 | Z212: 6.754966887 | AA212: 143.677437 | AB212: 68.24950711 | AC212: 6.747173347 | AE212: 0.003202636101 | AM212: 192 | AN212: 108 | AO212: 340
J213: 0 | S213: 113 | T213: 14.125 | U213: 127.1678344 | V213: 69.01940444 | W213: 88.6589404 | X213: 7.923203593 | Y213: 6.159166167 | Z213: 6.754966887 | AA213: 144.6678379 | AB213: 69.01940267 | AC213: 6.747173767 | AE213: 0.003087927139 | AM213: 193 | AN213: 108.25 | AO213: 385
J214: 0 | S214: 114 | T214: 14.25 | U214: 128.1582345 | V214: 69.78930042 | W214: 89.50331126 | X214: 7.923197169 | Y214: 6.159169444 | Z214: 6.754966887 | AA214: 145.658238 | AB214: 69.78929864 | AC214: 6.747174153 | AE214: 0.002978521216 | AM214: 194 | AN214: 108.5 | AO214: 340
... 114 more rows

Sheet fall
O16: 1
AI20: 0 | AM20: 0
O21: 220
K22: CHANGE
K23: PARAMETERS | M23: SLIDE TO SEE THE INSTANT VALUES
O24: WATCH THE MOVEMENT
AA51: =Z92+1 -> 9
W55: ptosiMagnetLenght | X55: 7 | Z55: PTOSIMAZAPINIO | AA55: 50
W56: PTOSIMAZAMAG | X56: 0.52 | Z56: ptosiresistance | AA56: 0.08
W57: PTOSITHESIMAG | X57: -20 | Z57: ptosiradius | AA57: 4
W58: PTOSIAALFAVALUE | X58: 0.87 | Z58: PTOSIARXIX | AA58: 30.6
W59: ptosiv0 | X59: 20 | Z59: ptosicoilength | AA59: 106
AA69: 0
AA71: 0
X75: V FALL
X76: =VLOOKUP(1,S101:AN321,6,FALSE) -> 110
X77: =X76 -> 110
X81: =W92+1 -> 6
W86: VMAGNET
V87: FALL | W87: =VLOOKUP(1,S101:AM321,5,FALSE) -> 30.79893331 | Z87: =VLOOKUP(1,S101:AP321,8,FALSE) -> 10
U88: X MAGNET | V88: =VLOOKUP(1,S101:AL321,4,FALSE) -> 603 | W88: 30.79893331 | Y88: ACCELERATION | Z88: 10
T89: XRONOS | U89: =VLOOKUP(1,S101:AK321,3,FALSE) -> 147.2288847 | V89: 603 | W89: =W88 -> 30.79893331 | Y89: =VLOOKUP(1,S101:AO321,7,FALSE) -> 9.726131309
T90: =VLOOKUP(1,S101:AJ321,2,FALSE) -> 11 | U90: 147.2288847 | Y90: 9.726131309
T91: 11
W92: =V93+1 -> 5 | Z92: =Y94+1 -> 8
V93: =U94+1 -> 4
U94: =T95+1 -> 3 | Y94: =X81+1 -> 7
S95: 1 | T95: =S95+1 -> 2 | U95: =T95+1 -> 3 | V95: =U95+1 -> 4 | W95: 5 | X95: 6 | Y95: 7 | Z95: 8 | AA95: 9 | AB95: =AA51+1 -> 10 | AC95: =AB95+1 -> 11 | AD95: 12 | AE95: 13 | AF95: 14 | AG95: 15 | AH95: 16 | AI95: 17 | AJ95: 18
U97: =$U$14 -> 0 | Z97: GRAVITY
Z98: 10
U99: XMAGNITI | Z99: 10
T100: XRONOS | V100: FALL | W100: V MAGNITI | X100: V FALL | Y100: ACCELERAGION | Z100: 10 | AJ100: DYNAMISOL
S101: =IF($O$21=AC101,1,0) -> 0 | T101: 0.05 | U101: -1.98755536 | V101: -1.9875 | W101: 0.4966792182 | X101: 0.5 | Y101: 9.867177804 | Z101: 10 | AC101: 1 | AE101: 0.0475 | AF101: 0.05 | AJ101: -0.1328221958
S102: =IF($O$21=AC102,1,0) -> 0 | T102: 0.1 | U102: -1.950443113 | V102: -1.95 | W102: 0.9866908323 | X102: 1 | Y102: 9.732744853 | Z102: 10 | AC102: 2 | AE102: 0.0975 | AF102: 0.1 | AJ102: -0.2672551472
S103: 0 | T103: 0.15 | U103: -1.889000011 | V103: -1.8875 | W103: 1.469873238 | X103: 1.5 | Y103: 9.593491251 | Z103: 10 | AC103: 3 | AE103: 0.1475 | AF103: 0.15 | AJ103: -0.4065087493
S104: 0 | T104: 0.2 | U104: -1.803574809 | V104: -1.8 | W104: 1.945909754 | X104: 2 | Y104: 9.446437018 | Z104: 10 | AC104: 4 | AE104: 0.1975 | AF104: 0.2 | AJ104: -0.5535629822
S105: 0 | T105: 0.25 | U105: -1.694535691 | V105: -1.6875 | W105: 2.414342966 | X105: 2.5 | Y105: 9.288964538 | Z105: 10 | AC105: 5 | AE105: 0.2475 | AF105: 0.25 | AJ105: -0.7110354618
S106: 0 | T106: 0.3 | U106: -1.562276758 | V106: -1.55 | W106: 2.874598775 | X106: 3 | Y106: 9.119079886 | Z106: 10 | AC106: 6 | AE106: 0.2975 | AF106: 0.3 | AJ106: -0.8809201135
S107: 0 | T107: 0.35 | U107: -1.407222929 | V107: -1.3875 | W107: 3.32602715 | X107: 3.5 | Y107: 8.935818233 | Z107: 10 | AC107: 7 | AE107: 0.3475 | AF107: 0.35 | AJ107: -1.064181767
S108: 0 | T108: 0.4 | U108: -1.229832243 | V108: -1.2 | W108: 3.767965999 | X108: 4 | Y108: 8.739747684 | Z108: 10 | AC108: 8 | AE108: 0.3975 | AF108: 0.4 | AJ108: -1.260252316
S109: 0 | T109: 0.45 | U109: -1.030594351 | V109: -0.9875 | W109: 4.199829486 | X109: 4.5 | Y109: 8.533400397 | Z109: 10 | AC109: 9 | AE109: 0.4475 | AF109: 0.45 | AJ109: -1.466599603
S110: 0 | T110: 0.5 | U110: -0.8100241754 | V110: -0.75 | W110: 4.621209001 | X110: 5 | Y110: 8.321269986 | Z110: 10 | AC110: 10 | AE110: 0.4975 | AF110: 0.5 | AJ110: -1.678730014
S111: 0 | T111: 0.55 | U111: -0.5560456637 | V111: -0.4875 | W111: 5.052211165 | X111: 5.5 | Y111: 8.098303028 | Z111: 10 | AC111: 11 | AE111: 0.55 | AF111: 0.5525 | AJ111: -1.901696972
S112: 0 | T112: 0.6 | U112: -0.2797451532 | V112: -0.2 | W112: 5.471609064 | X112: 6 | Y112: 7.87959692 | Z112: 10 | AC112: 12 | AE112: 0.6 | AF112: 0.6025 | AJ112: -2.12040308
S113: 0 | T113: 0.65 | U113: 0.01827421433 | V113: 0.1125 | W113: 5.879620404 | X113: 6.5 | Y113: 7.663480008 | Z113: 10 | AA113: 0 | AB113: 5.879620404 | AC113: 13 | AE113: 0.65 | AF113: 0.6525 | AJ113: -2.336519992
S114: 0 | T114: 0.7 | U114: 0.3374140472 | V114: 0.45 | W114: 6.276118906 | X114: 7 | Y114: 7.438126661 | Z114: 10 | AC114: 14 | AE114: 0.7 | AF114: 0.7025 | AJ114: -2.561873339
B115: 0 | S115: 0 | T115: 0.75 | U115: 0.6770482353 | V115: 0.8125 | W115: 6.660091146 | X115: 7.5 | Y115: 7.182271011 | Z115: 10 | AB115: 3.503089992 | AC115: 15 | AE115: 0.75 | AF115: 0.7525 | AJ115: -2.817728989
S116: 0 | T116: 0.8 | U116: 1.036466203 | V116: 1.2 | W116: 7.029319457 | X116: 8 | Y116: 6.873206129 | Z116: 10 | AC116: 16 | AE116: 0.8 | AF116: 0.8025 | AJ116: -3.126793871
S117: 0 | T117: 0.85 | U117: 1.414813311 | V117: 1.6125 | W117: 7.380630886 | X117: 8.5 | Y117: 6.499314078 | Z117: 10 | AC117: 17 | AE117: 0.85 | AF117: 0.8525 | AJ117: -3.500685922
S118: 0 | T118: 0.9 | U118: 1.811060928 | V118: 2.05 | W118: 7.710745489 | X118: 9 | Y118: 6.068802321 | Z118: 10 | AC118: 18 | AE118: 0.9 | AF118: 0.9025 | AJ118: -3.931197679
S119: 0 | T119: 0.95 | U119: 2.224028571 | V119: 2.5125 | W119: 8.017315249 | X119: 9.5 | Y119: 5.607659414 | Z119: 10 | AC119: 19 | AE119: 0.95 | AF119: 0.9525 | AJ119: -4.392340586
S120: 0 | T120: 1 | U120: 2.652452832 | V120: 3 | W120: 8.299586386 | X120: 10 | Y120: 5.148396864 | Z120: 10 | AA120: 0 | AB120: 2.296683185 | AC120: 20 | AE120: 1 | AF120: 1.0025 | AJ120: -4.851603136
S121: 0 | T121: 1.05 | U121: 3.095074124 | V121: 3.5125 | W121: 8.558408475 | X121: 10.5 | Y121: 4.717947301 | Z121: 10 | AC121: 21 | AE121: 1.05 | AF121: 1.0525 | AJ121: -5.282052699
S122: 0 | T122: 1.1 | U122: 3.550709508 | V122: 4.05 | W122: 8.795748444 | X122: 11 | Y122: 4.331546028 | Z122: 10 | AC122: 22 | AE122: 1.1 | AF122: 1.1025 | AJ122: -5.668453972
S123: 0 | T123: 1.15 | U123: 4.018294849 | V123: 4.6125 | W123: 9.014066903 | X123: 11.5 | Y123: 3.993250506 | Z123: 10 | AC123: 23 | AE123: 1.15 | AF123: 1.1525 | AJ123: -6.006749494
S124: 0 | T124: 1.2 | U124: 4.496896927 | V124: 5.2 | W124: 9.215826696 | X124: 12 | Y124: 3.699820516 | Z124: 10 | AC124: 24 | AE124: 1.2 | AF124: 1.2025 | AJ124: -6.300179484
S125: 0 | T125: 1.25 | U125: 4.98570545 | V125: 5.8125 | W125: 9.403219507 | X125: 12.5 | Y125: 3.44474666 | Z125: 10 | AC125: 25 | AE125: 1.25 | AF125: 1.2525 | AJ125: -6.55525334
S126: 0 | T126: 1.3 | U126: 5.484015734 | V126: 6.45 | W126: 9.578072348 | X126: 13 | Y126: 3.220974814 | Z126: 10 | AC126: 26 | AE126: 1.3 | AF126: 1.3025 | AJ126: -6.779025186
S127: 0 | T127: 1.35 | U127: 5.99120957 | V127: 7.1125 | W127: 9.741859526 | X127: 13.5 | Y127: 3.022255062 | Z127: 10 | AC127: 27 | AE127: 1.35 | AF127: 1.3525 | AJ127: -6.977744938
S128: 0 | T128: 1.4 | U128: 6.506738084 | V128: 7.8 | W128: 9.895759004 | X128: 14 | Y128: 2.843568448 | Z128: 10 | AC128: 28 | AE128: 1.4 | AF128: 1.4025 | AJ128: -7.156431552
S129: 0 | T129: 1.45 | U129: 7.030107894 | V129: 8.5125 | W129: 10.04071722 | X129: 14.5 | Y129: 2.681086097 | Z129: 10 | AC129: 29 | AE129: 1.45 | AF129: 1.4525 | AJ129: -7.318913903
S130: 0 | T130: 1.5 | U130: 7.560870506 | V130: 9.25 | W130: 10.17750627 | X130: 15 | Y130: 2.531955438 | Z130: 10 | AC130: 30 | AE130: 1.5 | AF130: 1.5025 | AJ130: -7.468044562
S131: 0 | T131: 1.55 | U131: 8.098614396 | V131: 10.0125 | W131: 10.30676889 | X131: 15.5 | Y131: 2.39406239 | Z131: 10 | AC131: 31 | AE131: 1.55 | AF131: 1.5525 | AJ131: -7.60593761
S132: 0 | T132: 1.6 | U132: 8.642959134 | V132: 10.8 | W132: 10.42905163 | X132: 16 | Y132: 2.265827974 | Z132: 10 | AC132: 32 | AE132: 1.6 | AF132: 1.6025 | AJ132: -7.734172026
S133: 0 | T133: 1.65 | U133: 9.193551 | V133: 11.6125 | W133: 10.54482871 | X133: 16.5 | Y133: 2.146052914 | Z133: 10 | AC133: 33 | AE133: 1.65 | AF133: 1.6525 | AJ133: -7.853947086
S134: 0 | T134: 1.7 | U134: 9.750059651 | V134: 12.45 | W134: 10.65451881 | X134: 17 | Y134: 2.033805651 | Z134: 10 | AC134: 34 | AE134: 1.7 | AF134: 1.7025 | AJ134: -7.966194349
S135: 0 | T135: 1.75 | U135: 10.31217554 | V135: 13.3125 | W135: 10.75849698 | X135: 17.5 | Y135: 1.928344163 | Z135: 10 | AC135: 35 | AE135: 1.75 | AF135: 1.7525 | AJ135: -8.071655837
S136: 0 | T136: 1.8 | U136: 10.87960784 | V136: 14.2 | W136: 10.85710304 | X136: 18 | Y136: 1.829062216 | Z136: 10 | AC136: 36 | AE136: 1.8 | AF136: 1.8025 | AJ136: -8.170937784
S137: 0 | T137: 1.85 | U137: 11.4520828 | V137: 15.1125 | W137: 10.95064773 | X137: 18.5 | Y137: 1.735452602 | Z137: 10 | AC137: 37 | AE137: 1.85 | AF137: 1.8525 | AJ137: -8.264547398
S138: 0 | T138: 1.9 | U138: 12.0293423 | V138: 16.05 | W138: 11.03941721 | X138: 19 | Y138: 1.647081916 | Z138: 10 | AC138: 38 | AE138: 1.9 | AF138: 1.9025 | AJ138: -8.352918084
S139: 0 | T139: 1.95 | U139: 12.61114268 | V139: 17.0125 | W139: 11.12367639 | X139: 19.5 | Y139: 1.563573107 | Z139: 10 | AC139: 39 | AE139: 1.95 | AF139: 1.9525 | AJ139: -8.436426893
S140: 0 | T140: 2 | U140: 13.19725371 | V140: 18 | W140: 11.20367162 | X140: 20 | Y140: 1.484593233 | Z140: 10 | AC140: 40 | AE140: 2 | AF140: 2.0025 | AJ140: -8.515406767
S141: 0 | T141: 2.05 | U141: 13.78745761 | V141: 19.0125 | W141: 11.27963271 | X141: 20.5 | Y141: 1.409844735 | Z141: 10 | AC141: 41 | AE141: 2.05 | AF141: 2.0525 | AJ141: -8.590155265
S142: 0 | T142: 2.1 | U142: 14.38154832 | V142: 20.05 | W142: 11.35177465 | X142: 21 | Y142: 1.339059079 | Z142: 10 | AC142: 42 | AE142: 2.1 | AF142: 2.1025 | AJ142: -8.660940921
S143: 0 | T143: 2.15 | U143: 14.97933065 | V143: 21.1125 | W143: 11.42029898 | X143: 21.5 | Y143: 1.271992038 | Z143: 10 | AC143: 43 | AE143: 2.15 | AF143: 2.1525 | AJ143: -8.728007962
S144: 0 | T144: 2.2 | U144: 15.58061972 | V144: 22.2 | W144: 11.48539497 | X144: 22 | Y144: 1.208420102 | Z144: 10 | AC144: 44 | AE144: 2.2 | AF144: 2.2025 | AJ144: -8.791579898
S145: 0 | T145: 2.25 | U145: 16.18524025 | V145: 23.3125 | W145: 11.54724065 | X145: 22.5 | Y145: 1.148137684 | Z145: 10 | AC145: 45 | AE145: 2.25 | AF145: 2.2525 | AJ145: -8.851862316
S146: 0 | T146: 2.3 | U146: 16.79302605 | V146: 24.45 | W146: 11.60600366 | X146: 23 | Y146: 1.090954905 | Z146: 10 | AC146: 46 | AE146: 2.3 | AF146: 2.3025 | AJ146: -8.909045095
S147: 0 | T147: 2.35 | U147: 17.40381946 | V147: 25.6125 | W147: 11.66184207 | X147: 23.5 | Y147: 1.036695803 | Z147: 10 | AC147: 47 | AE147: 2.35 | AF147: 2.3525 | AJ147: -8.963304197
S148: 0 | T148: 2.4 | U148: 18.0174709 | V148: 26.8 | W148: 11.71490502 | X148: 24 | Y148: 0.9851968433 | Z148: 10 | AC148: 48 | AE148: 2.4 | AF148: 2.4025 | AJ148: -9.014803157
S149: 0 | T149: 2.45 | U149: 18.63383838 | V149: 28.0125 | W149: 11.76533337 | X149: 24.5 | Y149: 0.9363056846 | Z149: 10 | AC149: 49 | AE149: 2.45 | AF149: 2.4525 | AJ149: -9.063694315
S150: 0 | T150: 2.5 | U150: 19.25278713 | V150: 29.25 | W150: 11.81326026 | X150: 25 | Y150: 0.8898801165 | Z150: 10 | AC150: 50 | AE150: 2.5 | AF150: 2.5025 | AJ150: -9.110119884
S151: 0 | T151: 2.55 | U151: 19.87418914 | V151: 30.5125 | W151: 11.8588116 | X151: 25.5 | Y151: 0.8457871524 | Z151: 10 | AC151: 51 | AE151: 2.55 | AF151: 2.5525 | AJ151: -9.154212848
S152: 0 | T152: 2.6 | U152: 20.49792286 | V152: 31.8 | W152: 11.90210654 | X152: 26 | Y152: 0.8039022377 | Z152: 10 | AC152: 52 | AE152: 2.6 | AF152: 2.6025 | AJ152: -9.196097762
S153: 0 | T153: 2.65 | U153: 21.12387282 | V153: 33.1125 | W153: 11.94325792 | X153: 26.5 | Y153: 0.7641085547 | Z153: 10 | AC153: 53 | AE153: 2.65 | AF153: 2.6525 | AJ153: -9.235891445
S154: 0 | T154: 2.7 | U154: 21.75192931 | V154: 34.45 | W154: 11.98237262 | X154: 27 | Y154: 0.7262964085 | Z154: 10 | AC154: 54 | AE154: 2.7 | AF154: 2.7025 | AJ154: -9.273703591
S155: 0 | T155: 2.75 | U155: 22.38198808 | V155: 35.8125 | W155: 12.01955192 | X155: 27.5 | Y155: 0.6903626794 | Z155: 10 | AC155: 55 | AE155: 2.75 | AF155: 2.7525 | AJ155: -9.309637321
S156: 0 | T156: 2.8 | U156: 23.01395007 | V156: 37.2 | W156: 12.05489187 | X156: 28 | Y156: 0.6562103324 | Z156: 10 | AC156: 56 | AE156: 2.8 | AF156: 2.8025 | AJ156: -9.343789668
S157: 0 | T157: 2.85 | U157: 23.64772113 | V157: 38.6125 | W157: 12.08848357 | X157: 28.5 | Y157: 0.6237479765 | Z157: 10 | AC157: 57 | AE157: 2.85 | AF157: 2.8525 | AJ157: -9.376252023
S158: 0 | T158: 2.9 | U158: 24.28321177 | V158: 40.05 | W158: 12.12041347 | X158: 29 | Y158: 0.5928894657 | Z158: 10 | AC158: 58 | AE158: 2.9 | AF158: 2.9025 | AJ158: -9.407110534
S159: 0 | T159: 2.95 | U159: 24.92033691 | V159: 41.5125 | W159: 12.15076361 | X159: 29.5 | Y159: 0.5635535367 | Z159: 10 | AC159: 59 | AE159: 2.95 | AF159: 2.9525 | AJ159: -9.436446463
S160: 0 | T160: 3 | U160: 25.55901567 | V160: 43 | W160: 12.17961189 | X160: 30 | Y160: 0.5356634794 | Z160: 10 | AC160: 60 | AE160: 3 | AF160: 3.0025 | AJ160: -9.464336521
S161: 0 | T161: 3.05 | U161: 26.19917117 | V161: 44.5125 | W161: 12.20703231 | X161: 30.5 | Y161: 0.5091468363 | Z161: 10 | AC161: 61 | AE161: 3.05 | AF161: 3.0525 | AJ161: -9.490853164
S162: 0 | T162: 3.1 | U162: 26.8407303 | V162: 46.05 | W162: 12.23309514 | X162: 31 | Y162: 0.4839351259 | Z162: 10 | AC162: 62 | AE162: 3.1 | AF162: 3.1025 | AJ162: -9.516064874
S163: 0 | T163: 3.15 | U163: 27.48362357 | V163: 47.6125 | W163: 12.2578672 | X163: 31.5 | Y163: 0.4599635903 | Z163: 10 | AC163: 63 | AE163: 3.15 | AF163: 3.1525 | AJ163: -9.54003641
S164: 0 | T164: 3.2 | U164: 28.12778488 | V164: 49.2 | W164: 12.28141195 | X164: 32 | Y164: 0.4371709615 | Z164: 10 | AC164: 64 | AE164: 3.2 | AF164: 3.2025 | AJ164: -9.562829038
S165: 0 | T165: 3.25 | U165: 28.77315141 | V165: 50.8125 | W165: 12.30378976 | X165: 32.5 | Y165: 0.4154992472 | Z165: 10 | AC165: 65 | AE165: 3.25 | AF165: 3.2525 | AJ165: -9.584500753
S166: =IF($O$21=AC166,1,0) -> 0 | T166: 3.3 | U166: 29.41966339 | V166: 52.45 | W166: 12.32505802 | X166: 33 | Y166: 0.3948935312 | Z166: 10 | AC166: 66 | AE166: 3.3 | AF166: 3.3025 | AJ166: -9.605106469
S167: 0 | T167: 3.35 | U167: 30.06726404 | V167: 54.1125 | W167: 12.34527133 | X167: 33.5 | Y167: 0.3753017907 | Z167: 10 | AC167: 67 | AE167: 3.35 | AF167: 3.3525 | AJ167: -9.624698209
S168: 0 | T168: 3.4 | U168: 30.71589933 | V168: 55.8 | W168: 12.36448159 | X168: 34 | Y168: 0.3566747248 | Z168: 10 | AC168: 68 | AE168: 3.4 | AF168: 3.4025 | AJ168: -9.643325275
S169: 0 | T169: 3.45 | U169: 31.36551792 | V169: 57.5125 | W169: 12.38273823 | X169: 34.5 | Y169: 0.3389655967 | Z169: 10 | AC169: 69 | AE169: 3.45 | AF169: 3.4525 | AJ169: -9.661034403
S170: 0 | T170: 3.5 | U170: 32.01607098 | V170: 59.25 | W170: 12.40008827 | X170: 35 | Y170: 0.3221300863 | Z170: 10 | AC170: 70 | AE170: 3.5 | AF170: 3.5025 | AJ170: -9.677869914
S171: 0 | T171: 3.55 | U171: 32.66751211 | V171: 61.0125 | W171: 12.41657644 | X171: 35.5 | Y171: 0.3061261531 | Z171: 10 | AC171: 71 | AE171: 3.55 | AF171: 3.5525 | AJ171: -9.693873847
S172: 0 | T172: 3.6 | U172: 33.31979717 | V172: 62.8 | W172: 12.43224537 | X172: 36 | Y172: 0.2909139081 | Z172: 10 | AC172: 72 | AE172: 3.6 | AF172: 3.6025 | AJ172: -9.709086092
S173: 0 | T173: 3.65 | U173: 33.97288424 | V173: 64.6125 | W173: 12.4471356 | X173: 36.5 | Y173: 0.2764554948 | Z173: 10 | AC173: 73 | AE173: 3.65 | AF173: 3.6525 | AJ173: -9.723544505
S174: 0 | T174: 3.7 | U174: 34.62673346 | V174: 66.45 | W174: 12.46128576 | X174: 37 | Y174: 0.2627149771 | Z174: 10 | AC174: 74 | AE174: 3.7 | AF174: 3.7025 | AJ174: -9.737285023
S175: 0 | T175: 3.75 | U175: 35.28130694 | V175: 68.3125 | W175: 12.47473263 | X175: 37.5 | Y175: 0.2496582354 | Z175: 10 | AC175: 75 | AE175: 3.75 | AF175: 3.7525 | AJ175: -9.750341765
S176: 0 | T176: 3.8 | U176: 35.93656869 | V176: 70.2 | W176: 12.48751127 | X176: 38 | Y176: 0.2372528684 | Z176: 10 | AC176: 76 | AE176: 3.8 | AF176: 3.8025 | AJ176: -9.762747132
S177: 0 | T177: 3.85 | U177: 36.59248452 | V177: 72.1125 | W177: 12.49965504 | X177: 38.5 | Y177: 0.2254681018 | Z177: 10 | AC177: 77 | AE177: 3.85 | AF177: 3.8525 | AJ177: -9.774531898
S178: 0 | T178: 3.9 | U178: 37.24902192 | V178: 74.05 | W178: 12.51119577 | X178: 39 | Y178: 0.214274702 | Z178: 10 | AC178: 78 | AE178: 3.9 | AF178: 3.9025 | AJ178: -9.785725298
S179: 0 | T179: 3.95 | U179: 37.90615005 | V179: 76.0125 | W179: 12.52216375 | X179: 39.5 | Y179: 0.2036448957 | Z179: 10 | AC179: 79 | AE179: 3.95 | AF179: 3.9525 | AJ179: -9.796355104
S180: 0 | T180: 4 | U180: 38.5638396 | V180: 78 | W180: 12.53258788 | X180: 40 | Y180: 0.1935522942 | Z180: 10 | AC180: 80 | AE180: 4 | AF180: 4.0025 | AJ180: -9.806447706
S181: 0 | T181: 4.05 | U181: 39.19070708 | V181: 80.0125 | W181: 12.54203522 | X181: 40.5 | Y181: 0.184416778 | Z181: 10 | AC181: 81 | AE181: 4.0475 | AF181: 4.05 | AJ181: -9.815583222
S182: 0 | T182: 4.1 | U182: 39.81803569 | V182: 82.05 | W182: 12.55103696 | X182: 41 | Y182: 0.1757251597 | Z182: 10 | AC182: 82 | AE182: 4.0975 | AF182: 4.1 | AJ182: -9.82427484
S183: 0 | T183: 4.15 | U183: 40.44580371 | V183: 84.1125 | W183: 12.5596148 | X183: 41.5 | Y183: 0.1674578055 | Z183: 10 | AC183: 83 | AE183: 4.1475 | AF183: 4.15 | AJ183: -9.832542194
S184: 0 | T184: 4.2 | U184: 41.07399045 | V184: 86.2 | W184: 12.5677895 | X184: 42 | Y184: 0.1595960106 | Z184: 10 | AC184: 84 | AE184: 4.1975 | AF184: 4.2 | AJ184: -9.840403989
S185: 0 | T185: 4.25 | U185: 41.70257627 | V185: 88.3125 | W185: 12.57558087 | X185: 42.5 | Y185: 0.1521219549 | Z185: 10 | AC185: 85 | AE185: 4.2475 | AF185: 4.25 | AJ185: -9.847878045
S186: 0 | T186: 4.3 | U186: 42.33154247 | V186: 90.45 | W186: 12.58300787 | X186: 43 | Y186: 0.145018661 | Z186: 10 | AC186: 86 | AE186: 4.2975 | AF186: 4.3 | AJ186: -9.854981339
S187: 0 | T187: 4.35 | U187: 42.96087129 | V187: 92.6125 | W187: 12.59008864 | X187: 43.5 | Y187: 0.1382699553 | Z187: 10 | AC187: 87 | AE187: 4.3475 | AF187: 4.35 | AJ187: -9.861730045
S188: 0 | T188: 4.4 | U188: 43.59054585 | V188: 94.8 | W188: 12.59684052 | X188: 44 | Y188: 0.1318604305 | Z188: 10 | AC188: 88 | AE188: 4.3975 | AF188: 4.4 | AJ188: -9.86813957
S189: 0 | T189: 4.45 | U189: 44.22055013 | V189: 97.0125 | W189: 12.60328009 | X189: 44.5 | Y189: 0.1257754101 | Z189: 10 | AC189: 89 | AE189: 4.4475 | AF189: 4.45 | AJ189: -9.87422459
S190: 0 | T190: 4.5 | U190: 44.85086892 | V190: 99.25 | W190: 12.60942323 | X190: 45 | Y190: 0.1200009153 | Z190: 10 | AC190: 90 | AE190: 4.4975 | AF190: 4.5 | AJ190: -9.879999085
S191: 0 | T191: 4.55 | U191: 45.48148777 | V191: 101.5125 | W191: 12.61528514 | X191: 45.5 | Y191: 0.1145236335 | Z191: 10 | AC191: 91 | AE191: 4.5475 | AF191: 4.55 | AJ191: -9.885476366
S192: 0 | T192: 4.6 | U192: 46.11239299 | V192: 103.8 | W192: 12.62088034 | X192: 46 | Y192: 0.1093308882 | Z192: 10 | AC192: 92 | AE192: 4.5975 | AF192: 4.6 | AJ192: -9.890669112
S193: 0 | T193: 4.65 | U193: 46.74357159 | V193: 106.1125 | W193: 12.62622277 | X193: 46.5 | Y193: 0.104410611 | Z193: 10 | AC193: 93 | AE193: 4.6475 | AF193: 4.65 | AJ193: -9.895589389
S194: 0 | T194: 4.7 | U194: 47.37501128 | V194: 108.45 | W194: 12.63132575 | X194: 47 | Y194: 0.09975131486 | Z194: 10 | AC194: 94 | AE194: 4.6975 | AF194: 4.7 | AJ194: -9.900248685
S195: 0 | T195: 4.75 | U195: 48.00670039 | V195: 110.8125 | W195: 12.63620207 | X195: 47.5 | Y195: 0.09534206877 | Z195: 10 | AC195: 95 | AE195: 4.7475 | AF195: 4.75 | AJ195: -9.904657931
S196: 0 | T196: 4.8 | U196: 48.63862791 | V196: 113.2 | W196: 12.64086395 | X196: 48 | Y196: 0.09117247406 | Z196: 10 | AC196: 96 | AE196: 4.7975 | AF196: 4.8 | AJ196: -9.908827526
S197: 0 | T197: 4.85 | U197: 49.27078341 | V197: 115.6125 | W197: 12.64532314 | X197: 48.5 | Y197: 0.08723264177 | Z197: 10 | AC197: 97 | AE197: 4.8475 | AF197: 4.85 | AJ197: -9.912767358
S198: 0 | T198: 4.9 | U198: 49.90315703 | V198: 118.05 | W198: 12.64959089 | X198: 49 | Y198: 0.08351317139 | Z198: 10 | AC198: 98 | AE198: 4.8975 | AF198: 4.9 | AJ198: -9.916486829
S199: 0 | T199: 4.95 | U199: 50.53573949 | V199: 120.5125 | W199: 12.65367798 | X199: 49.5 | Y199: 0.0800051308 | Z199: 10 | AC199: 99 | AE199: 4.9475 | AF199: 4.95 | AJ199: -9.919994869
S200: 0 | T200: 5 | U200: 51.16852199 | V200: 123 | W200: 12.65759478 | X200: 50 | Y200: 0.07670003736 | Z200: 10 | AC200: 100 | AE200: 4.9975 | AF200: 5 | AJ200: -9.923299963
S201: 0 | T201: 5.05 | U201: 51.80149629 | V201: 125.5125 | W201: 12.66135123 | X201: 50.5 | Y201: 0.07358984008 | Z201: 10 | AC201: 101 | AE201: 5.0475 | AF201: 5.05 | AJ201: -9.92641016
S202: 0 | T202: 5.1 | U202: 52.4346546 | V202: 128.05 | W202: 12.66495689 | X202: 51 | Y202: 0.07066690287 | Z202: 10 | AC202: 102 | AE202: 5.0975 | AF202: 5.1 | AJ202: -9.929333097
S203: 0 | T203: 5.15 | U203: 53.06798962 | V203: 130.6125 | W203: 12.66842092 | X203: 51.5 | Y203: 0.06792398878 | Z203: 10 | AC203: 103 | AE203: 5.1475 | AF203: 5.15 | AJ203: -9.932076011
S204: 0 | T204: 5.2 | U204: 53.70149448 | V204: 133.2 | W204: 12.67175217 | X204: 52 | Y204: 0.06535424533 | Z204: 10 | AC204: 104 | AE204: 5.1975 | AF204: 5.2 | AJ204: -9.934645755
S205: 0 | T205: 5.25 | U205: 54.33516277 | V205: 135.8125 | W205: 12.67495913 | X205: 52.5 | Y205: 0.06295119065 | Z205: 10 | AC205: 105 | AE205: 5.2475 | AF205: 5.25 | AJ205: -9.937048809
S206: 0 | T206: 5.3 | U206: 54.96898846 | V206: 138.45 | W206: 12.67804997 | X206: 53 | Y206: 0.06070870066 | Z206: 10 | AC206: 106 | AE206: 5.2975 | AF206: 5.3 | AJ206: -9.939291299
S207: 0 | T207: 5.35 | U207: 55.60296596 | V207: 141.1125 | W207: 12.68103258 | X207: 53.5 | Y207: 0.05862099713 | Z207: 10 | AC207: 107 | AE207: 5.3475 | AF207: 5.35 | AJ207: -9.941379003
S208: 0 | T208: 5.4 | U208: 56.23709004 | V208: 143.8 | W208: 12.68391456 | X208: 54 | Y208: 0.05668263661 | Z208: 10 | AC208: 108 | AE208: 5.3975 | AF208: 5.4 | AJ208: -9.943317363
S209: 0 | T209: 5.45 | U209: 56.87135586 | V209: 146.5125 | W209: 12.68670324 | X209: 54.5 | Y209: 0.05488850027 | Z209: 10 | AC209: 109 | AE209: 5.4475 | AF209: 5.45 | AJ209: -9.9451115
S210: 0 | T210: 5.5 | U210: 57.50575893 | V210: 149.25 | W210: 12.68940573 | X210: 55 | Y210: 0.0532337846 | Z210: 10 | AC210: 110 | AE210: 5.4975 | AF210: 5.5 | AJ210: -9.946766215
S211: 0 | T211: 5.55 | U211: 58.14029511 | V211: 152.0125 | W211: 12.69202887 | X211: 55.5 | Y211: 0.05171399292 | Z211: 10 | AC211: 111 | AE211: 5.5475 | AF211: 5.55 | AJ211: -9.948286007
S212: 0 | T212: 5.6 | U212: 58.77496061 | V212: 154.8 | W212: 12.69457931 | X212: 56 | Y212: 0.05032492781 | Z212: 10 | AC212: 112 | AE212: 5.5975 | AF212: 5.6 | AJ212: -9.949675072
S213: 0 | T213: 5.65 | U213: 59.40975194 | V213: 157.6125 | W213: 12.69706348 | X213: 56.5 | Y213: 0.04906268438 | Z213: 10 | AC213: 113 | AE213: 5.6475 | AF213: 5.65 | AJ213: -9.950937316
S214: 0 | T214: 5.7 | U214: 60.04466595 | V214: 160.45 | W214: 12.69948763 | X214: 57 | Y214: 0.0479236444 | Z214: 10 | AC214: 114 | AE214: 5.6975 | AF214: 5.7 | AJ214: -9.952076356
S215: 0 | T215: 5.75 | U215: 60.6796998 | V215: 163.3125 | W215: 12.70185784 | X215: 57.5 | Y215: 0.04690447129 | Z215: 10 | AC215: 115 | AE215: 5.7475 | AF215: 5.75 | AJ215: -9.953095529
S216: 0 | T216: 5.8 | U216: 61.31485094 | V216: 166.2 | W216: 12.70418002 | X216: 58 | Y216: 0.04600210606 | Z216: 10 | AC216: 116 | AE216: 5.7975 | AF216: 5.8 | AJ216: -9.953997894
S217: 0 | T217: 5.85 | U217: 61.9501171 | V217: 169.1125 | W217: 12.70645995 | X217: 58.5 | Y217: 0.04521376411 | Z217: 10 | AC217: 117 | AE217: 5.8475 | AF217: 5.85 | AJ217: -9.954786236
S218: 0 | T218: 5.9 | U218: 62.58549632 | V218: 172.05 | W218: 12.70870326 | X218: 59 | Y218: 0.04453693305 | Z218: 10 | AC218: 118 | AE218: 5.8975 | AF218: 5.9 | AJ218: -9.955463067
S219: 0 | T219: 5.95 | U219: 63.22098691 | V219: 175.0125 | W219: 12.71091546 | X219: 59.5 | Y219: 0.04396937147 | Z219: 10 | AC219: 119 | AE219: 5.9475 | AF219: 5.95 | AJ219: -9.956030629
S220: 0 | T220: 6 | U220: 63.85658744 | V220: 178 | W220: 12.71310198 | X220: 60 | Y220: 0.04350910873 | Z220: 10 | AC220: 120 | AE220: 5.9975 | AF220: 6 | AJ220: -9.956490891
S221: 0 | T221: 6.05 | U221: 64.49229677 | V221: 181.0125 | W221: 12.71526814 | X221: 60.5 | Y221: 0.04315444591 | Z221: 10 | AC221: 121 | AE221: 6.0475 | AF221: 6.05 | AJ221: -9.956845554
S222: 0 | T222: 6.1 | U222: 65.128114 | V222: 184.05 | W222: 12.71741916 | X222: 61 | Y222: 0.04290395789 | Z222: 10 | AC222: 122 | AE222: 6.0975 | AF222: 6.1 | AJ222: -9.957096042
S223: 0 | T223: 6.15 | U223: 65.76403852 | V223: 187.1125 | W223: 12.71956025 | X223: 61.5 | Y223: 0.04275649664 | Z223: 10 | AC223: 123 | AE223: 6.1475 | AF223: 6.15 | AJ223: -9.957243503
S224: 0 | T224: 6.2 | U224: 66.40006995 | V224: 190.2 | W224: 12.72169652 | X224: 62 | Y224: 0.04271119591 | Z224: 10 | AC224: 124 | AE224: 6.1975 | AF224: 6.2 | AJ224: -9.957288804
S225: 0 | T225: 6.25 | U225: 67.03620817 | V225: 193.3125 | W225: 12.72383306 | X225: 62.5 | Y225: 0.04276747726 | Z225: 10 | AC225: 125 | AE225: 6.2475 | AF225: 6.25 | AJ225: -9.957232523
S226: 0 | T226: 6.3 | U226: 67.67245334 | V226: 196.45 | W226: 12.72597495 | X226: 63 | Y226: 0.04292505779 | Z226: 10 | AC226: 126 | AE226: 6.2975 | AF226: 6.3 | AJ226: -9.957074942
S227: 0 | T227: 6.35 | U227: 68.30880584 | V227: 199.6125 | W227: 12.72812726 | X227: 63.5 | Y227: 0.04318395947 | Z227: 10 | AC227: 127 | AE227: 6.3475 | AF227: 6.35 | AJ227: -9.956816041
S228: 0 | T228: 6.4 | U228: 68.94526632 | V228: 202.8 | W228: 12.73029504 | X228: 64 | Y228: 0.04354452033 | Z228: 10 | AC228: 128 | AE228: 6.3975 | AF228: 6.4 | AJ228: -9.95645548
S229: 0 | T229: 6.45 | U229: 69.58183569 | V229: 206.0125 | W229: 12.73248341 | X229: 64.5 | Y229: 0.04400740784 | Z229: 10 | AC229: 129 | AE229: 6.4475 | AF229: 6.45 | AJ229: -9.955992592
S230: =IF($O$21=AC230,1,0) -> 0 | T230: 6.5 | U230: 70.21851509 | V230: 209.25 | W230: 12.73469751 | X230: 65 | Y230: 0.04457363442 | Z230: 10 | AC230: 130 | AE230: 6.4975 | AF230: 6.5 | AJ230: -9.955426366
S231: 0 | T231: 6.55 | U231: 70.85530596 | V231: 212.5125 | W231: 12.73694252 | X231: 65.5 | Y231: 0.04524457562 | Z231: 10 | AC231: 131 | AE231: 6.5475 | AF231: 6.55 | AJ231: -9.954755424
S232: 0 | T232: 6.6 | U232: 71.49220995 | V232: 215.8 | W232: 12.73922374 | X232: 66 | Y232: 0.04602199105 | Z232: 10 | AC232: 132 | AE232: 6.5975 | AF232: 6.6 | AJ232: -9.953978009
S233: 0 | T233: 6.65 | U233: 72.12922902 | V233: 219.1125 | W233: 12.74154653 | X233: 66.5 | Y233: 0.04690804855 | Z233: 10 | AC233: 133 | AE233: 6.6475 | AF233: 6.65 | AJ233: -9.953091951
S234: 0 | T234: 6.7 | U234: 72.76636539 | V234: 222.45 | W234: 12.7439164 | X234: 67 | Y234: 0.04790535196 | Z234: 10 | AC234: 134 | AE234: 6.6975 | AF234: 6.7 | AJ234: -9.952094648
S235: 0 | T235: 6.75 | U235: 73.40362154 | V235: 225.8125 | W235: 12.74633897 | X235: 67.5 | Y235: 0.0490169729 | Z235: 10 | AC235: 135 | AE235: 6.7475 | AF235: 6.75 | AJ235: -9.950983027
S236: 0 | T236: 6.8 | U236: 74.04100026 | V236: 229.2 | W236: 12.74882006 | X236: 68 | Y236: 0.05024648713 | Z236: 10 | AC236: 136 | AE236: 6.7975 | AF236: 6.8 | AJ236: -9.949753513
S237: 0 | T237: 6.85 | U237: 74.67850462 | V237: 232.6125 | W237: 12.75136565 | X237: 68.5 | Y237: 0.05159801628 | Z237: 10 | AC237: 137 | AE237: 6.8475 | AF237: 6.85 | AJ237: -9.948401984
S238: 0 | T238: 6.9 | U238: 75.316138 | V238: 236.05 | W238: 12.75398197 | X238: 69 | Y238: 0.05307627536 | Z238: 10 | AC238: 138 | AE238: 6.8975 | AF238: 6.9 | AJ238: -9.946923725
S239: 0 | T239: 6.95 | U239: 75.9539041 | V239: 239.5125 | W239: 12.75667548 | X239: 69.5 | Y239: 0.05468662733 | Z239: 10 | AC239: 139 | AE239: 6.9475 | AF239: 6.95 | AJ239: -9.945313373
S240: 0 | T240: 7 | U240: 76.59180695 | V240: 243 | W240: 12.75945294 | X240: 70 | Y240: 0.05643514537 | Z240: 10 | AC240: 140 | AE240: 6.9975 | AF240: 7 | AJ240: -9.943564855
S241: 0 | T241: 7.05 | U241: 77.22985091 | V241: 246.5125 | W241: 12.76232141 | X241: 70.5 | Y241: 0.05832868441 | Z241: 10 | AC241: 141 | AE241: 7.0475 | AF241: 7.05 | AJ241: -9.941671316
S242: 0 | T242: 7.1 | U242: 77.86804073 | V242: 250.05 | W242: 12.76528835 | X242: 71 | Y242: 0.06037496309 | Z242: 10 | AC242: 142 | AE242: 7.0975 | AF242: 7.1 | AJ242: -9.939625037
S243: 0 | T243: 7.15 | U243: 78.50638152 | V243: 253.6125 | W243: 12.7683616 | X243: 71.5 | Y243: 0.06258265807 | Z243: 10 | AC243: 143 | AE243: 7.1475 | AF243: 7.15 | AJ243: -9.937417342
S244: 0 | T244: 7.2 | U244: 79.1448788 | V244: 257.2 | W244: 12.77154947 | X244: 72 | Y244: 0.06496151255 | Z244: 10 | AC244: 144 | AE244: 7.1975 | AF244: 7.2 | AJ244: -9.935038487
S245: 0 | T245: 7.25 | U245: 79.78353852 | V245: 260.8125 | W245: 12.77486078 | X245: 72.5 | Y245: 0.06752246162 | Z245: 10 | AC245: 145 | AE245: 7.2475 | AF245: 7.25 | AJ245: -9.932477538
S246: 0 | T246: 7.3 | U246: 80.42236709 | V246: 264.45 | W246: 12.77830495 | X246: 73 | Y246: 0.07027777732 | Z246: 10 | AC246: 146 | AE246: 7.2975 | AF246: 7.3 | AJ246: -9.929722223
S247: 0 | T247: 7.35 | U247: 81.0613714 | V247: 268.1125 | W247: 12.78189203 | X247: 73.5 | Y247: 0.07324123695 | Z247: 10 | AC247: 147 | AE247: 7.3475 | AF247: 7.35 | AJ247: -9.926758763
S248: 0 | T248: 7.4 | U248: 81.70055886 | V248: 271.8 | W248: 12.7856328 | X248: 74 | Y248: 0.07642831897 | Z248: 10 | AC248: 148 | AE248: 7.3975 | AF248: 7.4 | AJ248: -9.923571681
S249: 0 | T249: 7.45 | U249: 82.33993744 | V249: 275.5125 | W249: 12.78953888 | X249: 74.5 | Y249: 0.07985643195 | Z249: 10 | AC249: 149 | AE249: 7.4475 | AF249: 7.45 | AJ249: -9.920143568
S250: 0 | T250: 7.5 | U250: 82.97951571 | V250: 279.25 | W250: 12.79362279 | X250: 75 | Y250: 0.08354518272 | Z250: 10 | AC250: 150 | AE250: 7.4975 | AF250: 7.5 | AJ250: -9.916454817
S251: 0 | T251: 7.55 | U251: 83.6193029 | V251: 283.0125 | W251: 12.79789811 | X251: 75.5 | Y251: 0.08751669221 | Z251: 10 | AC251: 151 | AE251: 7.5475 | AF251: 7.55 | AJ251: -9.912483308
S252: 0 | T252: 7.6 | U252: 84.25930896 | V252: 286.8 | W252: 12.80237958 | X252: 76 | Y252: 0.09179596859 | Z252: 10 | AC252: 152 | AE252: 7.5975 | AF252: 7.6 | AJ252: -9.908204031
S253: 0 | T253: 7.65 | U253: 84.89954457 | V253: 290.6125 | W253: 12.8070833 | X253: 76.5 | Y253: 0.09641135053 | Z253: 10 | AC253: 153 | AE253: 7.6475 | AF253: 7.65 | AJ253: -9.903588649
S254: 0 | T254: 7.7 | U254: 85.54002128 | V254: 294.45 | W254: 12.81202686 | X254: 77 | Y254: 0.1013950363 | Z254: 10 | AC254: 154 | AE254: 7.6975 | AF254: 7.7 | AJ254: -9.898604964
S255: 0 | T255: 7.75 | U255: 86.18075157 | V255: 298.3125 | W255: 12.81722955 | X255: 77.5 | Y255: 0.1067837189 | Z255: 10 | AC255: 155 | AE255: 7.7475 | AF255: 7.75 | AJ255: -9.893216281
S256: 0 | T256: 7.8 | U256: 86.82174891 | V256: 302.2 | W256: 12.82271267 | X256: 78 | Y256: 0.1126193535 | Z256: 10 | AC256: 156 | AE256: 7.7975 | AF256: 7.8 | AJ256: -9.887380646
S257: 0 | T257: 7.85 | U257: 87.4630279 | V257: 306.1125 | W257: 12.82849974 | X257: 78.5 | Y257: 0.1189500911 | Z257: 10 | AC257: 157 | AE257: 7.8475 | AF257: 7.85 | AJ257: -9.881049909
S258: 0 | T258: 7.9 | U258: 88.10460438 | V258: 310.05 | W258: 12.83461685 | X258: 79 | Y258: 0.1258314223 | Z258: 10 | AC258: 158 | AE258: 7.8975 | AF258: 7.9 | AJ258: -9.874168578
S259: 0 | T259: 7.95 | U259: 88.74649557 | V259: 314.0125 | W259: 12.84109312 | X259: 79.5 | Y259: 0.1333275925 | Z259: 10 | AC259: 159 | AE259: 7.9475 | AF259: 7.95 | AJ259: -9.866672408
S260: 0 | T260: 8 | U260: 89.38872022 | V260: 318 | W260: 12.8479611 | X260: 80 | Y260: 0.1415133683 | Z260: 10 | AC260: 160 | AE260: 7.9975 | AF260: 8 | AJ260: -9.858486632
S261: 0 | T261: 8.05 | U261: 90.06343743 | V261: 322.0125 | W261: 12.85563418 | X261: 80.5 | Y261: 0.150946587 | Z261: 10 | AC261: 161 | AE261: 8.05 | AF261: 8.0525 | AJ261: -9.849053413
S262: 0 | T262: 8.1 | U262: 90.73857091 | V262: 326.05 | W262: 12.86382757 | X262: 81 | Y262: 0.161356662 | Z262: 10 | AC262: 162 | AE262: 8.1 | AF262: 8.1025 | AJ262: -9.838643338
S263: 0 | T263: 8.15 | U263: 91.41414939 | V263: 330.1125 | W263: 12.87259622 | X263: 81.5 | Y263: 0.1728872664 | Z263: 10 | AC263: 163 | AE263: 8.15 | AF263: 8.1525 | AJ263: -9.827112734
S264: 0 | T264: 8.2 | U264: 92.09020468 | V264: 334.2 | W264: 12.88200336 | X264: 82 | Y264: 0.1857121841 | Z264: 10 | AC264: 164 | AE264: 8.2 | AF264: 8.2025 | AJ264: -9.814287816
S265: 0 | T265: 8.25 | U265: 92.76677219 | V265: 338.3125 | W265: 12.89212234 | X265: 82.5 | Y265: 0.2000440138 | Z265: 10 | AC265: 165 | AE265: 8.25 | AF265: 8.2525 | AJ265: -9.799955986
S266: 0 | T266: 8.3 | U266: 93.44389148 | V266: 342.45 | W266: 12.90303893 | X266: 83 | Y266: 0.2161463476 | Z266: 10 | AC266: 166 | AE266: 8.3 | AF266: 8.3025 | AJ266: -9.783853652
S267: 0 | T267: 8.35 | U267: 94.121607 | V267: 346.6125 | W267: 12.91485445 | X267: 83.5 | Y267: 0.2343512751 | Z267: 10 | AC267: 167 | AE267: 8.35 | AF267: 8.3525 | AJ267: -9.765648725
S268: 0 | T268: 8.4 | U268: 94.79996903 | V268: 350.8 | W268: 12.92769 | X268: 84 | Y268: 0.2550852981 | Z268: 10 | AC268: 168 | AE268: 8.4 | AF268: 8.4025 | AJ268: -9.744914702
... 53 more rows

Sheet coil
A1: CALCULATIONS FOR SHEET "MONOPOLE" | D1: =d -> 30 | F1: 10 | H1: 0.1 | I1: -40 | J1: 30 | K1: 5 | L1: 5 | M1: =M4/10 -> 1.5
B2: ypologismos(arxi, x1, t, q, d, r, ve, epit) | H2: time | I2: beginning | J2: length of magnet | K2: speed | L2: radius of coil | M2: acceleration | O2: =-ve/acceleration -> -3.333333333
D3: emf due to + | F3: emf due to - | G3: V(+)+V(-) | H3: Flux in a coil
A4: =IF(I4=$L$4,1,0) -> 0 | B4: 0 | C4: =arxi+ve*(B4-$B$4)+1/2*acceleration*(B4-$B$4)^2 -> -40 | D4: =-ypologismos(arxi,0,B4-$B$4,1,d,aktina,ve,acceleration) -> 7.632906744e-05 | E4: =arxi+ve*(B4-$B$4)+acceleration/2*(B4-$B$4)^2-d -> -70 | F4: =-ypologismos(arxi,0,B4-$B$4,-1,d,aktina,ve,acceleration) -> -1.446640609e-05 | G4: =F4+D4 -> 6.186266135e-05 | H4: =roivrochos(arxi,0,B4-$B$4,1,d,aktina,ve,acceleration) -> 0.04851953157 | I4: =1 -> 1 | L4: 15 | M4: 15
A5: =IF(I5=$L$4,1,0) -> 0 | B5: =B4+xronos -> 0.1 | C5: -39.4925 | D5: 8.164020569e-05 | E5: -69.4925 | F5: -1.522753885e-05 | G5: =F5+D5 -> 6.641266685e-05 | H5: 0.04975967861 | I5: =I4+1 -> 2
A6: 0 | B6: =B5+xronos -> 0.2 | C6: -38.97 | D6: 8.738723815e-05 | E6: -68.97 | F6: -1.602804162e-05 | G6: 7.135919652e-05 | H6: 0.0510866156 | I6: =I5+1 -> 3
A7: 0 | B7: 0.3 | C7: -38.4325 | D7: 9.361961645e-05 | E7: -68.4325 | F7: -1.687100075e-05 | G7: 7.67486157e-05 | H7: 0.05250756975 | I7: 4
A8: 0 | B8: 0.4 | C8: -37.88 | D8: 0.0001003935619 | E8: -67.88 | F8: -1.775977863e-05 | G8: 8.263378327e-05 | H8: 0.05403059686 | I8: 5
A9: 0 | B9: 0.5 | C9: -37.3125 | D9: 0.0001077731843 | E9: -67.3125 | F9: -1.869804417e-05 | G9: 8.907514015e-05 | H9: 0.05566469623 | I9: 6
A10: 0 | B10: 0.6 | C10: -36.73 | D10: 0.0001158318168 | E10: -66.73 | F10: -1.968980697e-05 | G10: 9.614200984e-05 | H10: 0.05741994471 | I10: 7
A11: 0 | B11: 0.7 | C11: -36.1325 | D11: 0.0001246536145 | E11: -66.1325 | F11: -2.073945602e-05 | G11: 0.0001039141585 | H11: 0.05930765378 | I11: 8
A12: 0 | B12: 0.8 | C12: -35.52 | D12: 0.0001343354778 | E12: -65.52 | F12: -2.185180343e-05 | G12: 0.0001124836744 | H12: 0.06134055418 | I12: 9
A13: 0 | B13: 0.9 | C13: -34.8925 | D13: 0.000144989375 | E13: -64.8925 | F13: -2.303213388e-05 | G13: 0.0001219572411 | H13: 0.06353301373 | I13: 10
A14: 0 | B14: 1 | C14: -34.25 | D14: 0.0001567451618 | E14: -64.25 | F14: -2.42862609e-05 | G14: 0.0001324589009 | H14: 0.0659012955 | I14: 11
A15: 0 | B15: 1.1 | C15: -33.5925 | D15: 0.0001697540189 | E15: -63.5925 | F15: -2.562059084e-05 | G15: 0.000144133428 | H15: 0.06846386484 | I15: 12
A16: 0 | B16: 1.2 | C16: -32.92 | D16: 0.0001841926642 | E16: -62.92 | F16: -2.704219579e-05 | G16: 0.0001571504684 | H16: 0.07124175631 | I16: 13 | O16: 80
A17: 0 | B17: 1.3 | C17: -32.2325 | D17: 0.0002002685431 | E17: -62.2325 | F17: -2.855889696e-05 | G17: 0.0001717096461 | H17: 0.07425901413 | I17: 14
A18: 1 | B18: 1.4 | C18: -31.53 | D18: 0.0002182262563 | E18: -61.53 | F18: -3.017936017e-05 | G18: 0.0001880468961 | H18: 0.07754322356 | I18: 15
A19: 0 | B19: 1.5 | C19: -30.8125 | D19: 0.0002383555692 | E19: -60.8125 | F19: -3.191320552e-05 | G19: 0.0002064423636 | H19: 0.08112615506 | I19: 16
A20: 0 | B20: 1.6 | C20: -30.08 | D20: 0.0002610014517 | E20: -60.08 | F20: -3.377113363e-05 | G20: 0.0002272303181 | H20: 0.08504454957 | I20: 17 | M20: INSTANT EMF FOR MAGNET
A21: 0 | B21: 1.7 | C21: -29.3325 | D21: 0.0002865767444 | E21: -59.3325 | F21: -3.576507127e-05 | G21: 0.0002508116732 | H21: 0.08934108128 | I21: 18 | L21: =M35 -> 1.4 | M21: =VLOOKUP(1,A4:I151,7,FALSE) -> 0.0001880468961
A22: 0 | B22: 1.8 | C22: -28.57 | D22: 0.0003155782465 | E22: -58.57 | F22: -3.790833998e-05 | G22: 0.0002776699065 | H22: 0.09406554498 | I22: 19 | L22: =L21 -> 1.4 | M22: =M21 -> 0.0001880468961
A23: 0 | B23: 1.9 | C23: -27.7925 | D23: 0.0003486072975 | E23: -57.7925 | F23: -4.021585164e-05 | G23: 0.0003083914458 | H23: 0.09927632977 | I23: 20
A24: 0 | B24: 2 | C24: -27 | D24: 0.0003863963081 | E24: -57 | F24: -4.270433609e-05 | G24: 0.000343691972 | H24: 0.1050422606 | I24: 21
A25: 0 | B25: 2.1 | C25: -26.1925 | D25: 0.0004298432335 | E25: -56.1925 | F25: -4.539260676e-05 | G25: 0.0003844506268 | H25: 0.1114449161 | I25: 22 | M25: INSTANT FLUX
A26: 0 | B26: 2.2 | C26: -25.37 | D26: 0.0004800567515 | E26: -55.37 | F26: -4.830187167e-05 | G26: 0.0004317548798 | H26: 0.1185815671 | I26: 23 | L26: =M35 -> 1.4 | M26: =VLOOKUP(1,A4:H151,8,FALSE) -> 0.07754322356
A27: 0 | B27: 2.3 | C27: -24.5325 | D27: 0.0005384160037 | E27: -54.5325 | F27: -5.145609867e-05 | G27: 0.000486959905 | H27: 0.1265689341 | I27: 24 | L27: =L26 -> 1.4 | M27: =M26 -> 0.07754322356
A28: 0 | B28: 2.4 | C28: -23.68 | D28: 0.0006066503573 | E28: -53.68 | F28: -5.48824458e-05 | G28: 0.0005517679115 | H28: 0.1355480315 | I28: 25
A29: 0 | B29: 2.5 | C29: -22.8125 | D29: 0.0006869469851 | E29: -52.8125 | F29: -5.86117702e-05 | G29: 0.0006283352149 | H29: 0.1456904707 | I29: 26 | M29: INSTANT EMF FOR MONOPOLE
A30: 0 | B30: 2.6 | C30: -21.93 | D30: 0.000782097549 | E30: -51.93 | F30: -6.267923206e-05 | G30: 0.000719418317 | H30: 0.1572067434 | I30: 27 | L30: =M35 -> 1.4 | M30: =VLOOKUP(1,A4:H153,4,FALSE) -> 0.0002182262563
A31: 0 | B31: 2.7 | C31: -21.0325 | D31: 0.0008957005237 | E31: -51.0325 | F31: -6.712501395e-05 | G31: 0.0008285755098 | H31: 0.1703572187 | I31: 28 | L31: =L30 -> 1.4 | M31: =M30 -> 0.0002182262563
A32: 0 | B32: 2.8 | C32: -20.12 | D32: 0.001032443716 | E32: -50.12 | F32: -7.199518118e-05 | G32: 0.0009604485344 | H32: 0.1854669107 | I32: 29
A33: 0 | B33: 2.9 | C33: -19.1925 | D33: 0.001198503961 | E33: -49.1925 | F33: -7.734271481e-05 | G33: 0.001121161246 | H33: 0.2029455437 | I33: 30
A34: 0 | B34: 3 | C34: -18.25 | D34: 0.001402120522 | E34: -48.25 | F34: -8.322875751e-05 | G34: 0.001318891765 | H34: 0.2233151699 | I34: 31 | M34: TIME
A35: 0 | B35: 3.1 | C35: -17.2925 | D35: 0.001654429875 | E35: -47.2925 | F35: -8.972412274e-05 | G35: 0.001564705752 | H35: 0.2472487053 | I35: 32 | M35: =VLOOKUP(1,A4:H155,2,FALSE) -> 1.4
A36: 0 | B36: 3.2 | C36: =arxi+ve*(B36-$B$4)+1/2*acceleration*(B36-$B$4)^2 -> -16.32 | D36: =-ypologismos(arxi,0,B36-$B$4,1,d,aktina,ve,acceleration) -> 0.001970700086 | E36: =arxi+ve*(B36-$B$4)+acceleration/2*(B36-$B$4)^2-d -> -46.32 | F36: =-ypologismos(arxi,0,B36-$B$4,-1,d,aktina,ve,acceleration) -> -9.691113163e-05 | G36: 0.001873788954 | H36: =roivrochos(arxi,0,B36-$B$4,1,d,aktina,ve,acceleration) -> 0.2756244904 | I36: 33
A37: 0 | B37: 3.3 | C37: -15.3325 | D37: 0.002372185948 | E37: -45.3325 | F37: -0.0001048858597 | G37: 0.002267300088 | H37: 0.3096047542 | I37: 34
A38: 0 | B38: 3.4 | C38: -14.33 | D38: 0.002888964198 | E38: -44.33 | F38: -0.0001137608995 | G38: 0.002775203298 | H38: 0.3507503216 | I38: 35
A39: 0 | B39: 3.5 | C39: -13.3125 | D39: 0.003564340205 | E39: -43.3125 | F39: -0.0001236687754 | G39: 0.00344067143 | H39: 0.4011912172 | I39: 36
A40: 0 | B40: 3.6 | C40: -12.28 | D40: 0.004461808866 | E40: -42.28 | F40: -0.0001347661901 | G40: 0.004327042676 | H40: 0.4638849141 | I40: 37
A41: 0 | B41: 3.7 | C41: -11.2325 | D41: 0.005676205458 | E41: -41.2325 | F41: -0.0001472393362 | G41: 0.005528966122 | H41: 0.5430141157 | I41: 38
A42: 0 | B42: 3.8 | C42: -10.17 | D42: 0.007351731434 | E42: -40.17 | F42: -0.0001613105836 | G42: 0.00719042085 | H42: 0.6446092891 | I42: 39
A43: 0 | B43: 3.9 | C43: -9.0925 | D43: 0.009711049154 | E43: -39.0925 | F43: -0.000177246956 | G43: 0.009533802198 | H43: 0.7775346719 | I43: 40
A44: 0 | B44: 4 | C44: -8 | D44: 0.01310109739 | E44: -38 | F44: -0.0001953709514 | G44: 0.01290572644 | H44: 0.9550548229 | I44: 41
A45: 0 | B45: 4.1 | C45: -6.8925 | D45: 0.01805963421 | E45: -36.8925 | F45: -0.0002160744619 | G45: 0.01784355975 | H45: 1.197283116 | I45: 42
A46: 0 | B46: 4.2 | C46: -5.77 | D46: 0.02538954694 | E46: -35.77 | F46: -0.0002398368237 | G46: 0.02514971012 | H46: 1.534779245 | I46: 43
A47: 0 | B47: =B46+xronos -> 4.3 | C47: -4.6325 | D47: 0.03615645889 | E47: -34.6325 | F47: -0.0002672484253 | G47: 0.03588921047 | H47: 2.01291437 | I47: 44
A48: 0 | B48: 4.4 | C48: -3.48 | D48: 0.05131147936 | E48: -33.48 | F48: -0.0002990418686 | G48: 0.0510124375 | H48: 2.693872616 | I48: 45
A49: 0 | B49: 4.5 | C49: -2.3125 | D49: 0.07028297435 | E49: -32.3125 | F49: -0.0003361335022 | G49: 0.06994684085 | H49: 3.645645447 | I49: 46
A50: 0 | B50: 4.6 | C50: -1.13 | D50: 0.08834577176 | E50: -31.13 | F50: -0.0003796793597 | G50: 0.0879660924 | H50: 4.898116822 | I50: 47
A51: 0 | B51: 4.7 | C51: 0.0675 | D51: 0.09637365265 | E51: -29.9325 | F51: -0.0004311513454 | G51: 0.09594250131 | H51: -6.198370034 | I51: 48
A52: 0 | B52: 4.8 | C52: 1.28 | D52: 0.08873554617 | E52: -28.72 | F52: -0.0004924422471 | G52: 0.08824310392 | H52: -4.724940207 | I52: 49
A53: 0 | B53: 4.9 | C53: 2.5075 | D53: 0.07056827354 | E53: -27.4925 | F53: -0.0005660123629 | G53: 0.07000226117 | H53: -3.466521662 | I53: 50
A54: 0 | B54: 5 | C54: 3.75 | D54: 0.0512 | E54: -26.25 | F54: -0.0006550970955 | G54: 0.0505449029 | H54: -2.513274123 | I54: 51
A55: 0 | B55: 5.1 | C55: 5.0075 | D55: 0.03569918955 | E55: -24.9925 | F55: -0.0007640053053 | G55: 0.03493518425 | H55: -1.836973953 | I55: 52
A56: 0 | B56: 5.2 | C56: 6.28 | D56: 0.02474530705 | E56: -23.72 | F56: -0.0008985551099 | G56: 0.02384675194 | H56: -1.367691674 | I56: 53
A57: 0 | B57: 5.3 | C57: 7.5675 | D57: 0.01735524834 | E57: -22.4325 | F57: -0.001066721719 | G57: 0.01628852662 | H57: -1.040916103 | I57: 54
A58: 0 | B58: 5.4 | C58: 8.87 | D58: 0.01240932878 | E58: -21.13 | F58: -0.001279618961 | G58: 0.01112970982 | H58: -0.8097185261 | I58: 55
A59: 0 | B59: 5.5 | C59: 10.1875 | D59: 0.009066030263 | E59: -19.8125 | F59: -0.001553017341 | G59: 0.007513012922 | H59: -0.6427245048 | I59: 56
A60: 0 | B60: 5.6 | C60: 11.52 | D60: 0.006765724331 | E60: -18.48 | F60: -0.001909744837 | G60: 0.004855979494 | H60: -0.5194745165 | I60: 57
A61: 0 | B61: 5.7 | C61: 12.8675 | D61: 0.005150492464 | E61: -17.1325 | F61: -0.002383576015 | G61: 0.002766916449 | H61: -0.4266081997 | I61: 58
A62: 0 | B62: 5.8 | C62: 14.23 | D62: 0.003992719462 | E62: -15.77 | F62: -0.003025695854 | G62: 0.0009670236078 | H62: -0.355285632 | I62: 59
A63: 0 | B63: 5.9 | C63: 15.6075 | D63: 0.003146336559 | E63: -14.3925 | F63: -0.00391573615 | G63: -0.0007693995914 | H63: -0.2995514205 | I63: 60
A64: 0 | B64: 6 | C64: 17 | D64: 0.002516132825 | E64: -13 | F64: -0.005181141351 | G64: -0.002665008525 | H64: -0.2553140835 | I64: 61
A65: 0 | B65: 6.1 | C65: 18.4075 | D65: 0.00203890897 | E65: -11.5925 | F65: -0.007032033849 | G65: -0.004993124879 | H65: -0.2197072575 | I65: 62
A66: 0 | B66: 6.2 | C66: 19.83 | D66: 0.001671918017 | E66: -10.17 | F66: -0.009825211169 | G66: -0.008153293151 | H66: -0.1906849582 | I66: 63
A67: 0 | B67: 6.3 | C67: 21.2675 | D67: 0.001385708074 | E67: -8.7325 | F67: -0.01418185752 | G67: -0.01279614944 | H67: -0.1667609387 | I67: 64
A68: 0 | B68: 6.4 | C68: =arxi+ve*(B68-$B$4)+1/2*acceleration*(B68-$B$4)^2 -> 22.72 | D68: =-ypologismos(arxi,0,B68-$B$4,1,d,aktina,ve,acceleration) -> 0.001159626416 | E68: =arxi+ve*(B68-$B$4)+acceleration/2*(B68-$B$4)^2-d -> -7.28 | F68: =-ypologismos(arxi,0,B68-$B$4,-1,d,aktina,ve,acceleration) -> -0.0211945556 | G68: -0.02003492918 | H68: =roivrochos(arxi,0,B68-$B$4,1,d,aktina,ve,acceleration) -> -0.1468378387 | I68: 65
A69: =IF(I69=$L$4,1,0) -> 0 | B69: 6.5 | C69: 24.1875 | D69: 0.0009789482271 | E69: -5.8125 | F69: -0.03272581756 | G69: =F69+D69 -> -0.03174686934 | H69: -0.1300931648 | I69: 66
A70: 0 | B70: 6.6 | C70: 25.67 | D70: 0.0008330110939 | E70: -4.33 | F70: -0.05149150216 | G70: -0.05065849107 | H70: -0.1159018551 | I70: =I69+1 -> 67
A71: 0 | B71: 6.7 | C71: 27.1675 | D71: 0.0007139820958 | E71: -2.8325 | F71: -0.0793068323 | G71: -0.0785928502 | H71: -0.1037828027 | I71: 68
A72: 0 | B72: 6.8 | C72: 28.68 | D72: 0.0006160293969 | E72: -1.32 | F72: -0.1099114702 | G72: -0.1092954408 | H72: -0.09336133779 | I72: 69
A73: 0 | B73: 6.9 | C73: 30.2075 | D73: 0.0005347567685 | E73: 0.2075 | F73: -0.1224834431 | G73: -0.1219486864 | H73: -0.08434251162 | I73: 70
A74: 0 | B74: 7 | C74: 31.75 | D74: 0.0004668117754 | E74: 1.75 | F74: -0.1042658674 | G74: -0.1037990557 | H74: -0.07649180762 | I74: 71
A75: 0 | B75: 7.1 | C75: 33.3075 | D75: 0.0004096104356 | E75: 3.3075 | F75: -0.07263656132 | G75: -0.07222695088 | H75: -0.06962103233 | I75: 72
A76: 0 | B76: 7.2 | C76: 34.88 | D76: 0.0003611411492 | E76: 4.88 | F76: -0.04632710412 | G76: -0.04596596298 | H76: -0.06357786979 | I76: 73
A77: 0 | B77: 7.3 | C77: 36.4675 | D77: 0.0003198233246 | E77: 6.4675 | F77: -0.02919561104 | G77: -0.02887578772 | H77: -0.05823806022 | I77: 74
A78: 0 | B78: 7.4 | C78: 38.07 | D78: 0.0002844042457 | E78: 8.07 | F78: -0.01881735951 | G78: -0.01853295526 | H78: -0.05349948151 | I78: 75
A79: 0 | B79: 7.5 | C79: 39.6875 | D79: 0.000253883006 | E79: 9.6875 | F79: -0.01254201838 | G79: -0.01228813538 | H79: -0.04927762607 | I79: 76
A80: 0 | B80: 7.6 | C80: 41.32 | D80: 0.0002274538254 | E80: 11.32 | F80: -0.008653676872 | G80: -0.008426223047 | H80: -0.04550211207 | I80: 77
A81: 0 | B81: 7.7 | C81: 42.9675 | D81: 0.0002044633991 | E81: 12.9675 | F81: -0.006165034392 | G81: -0.005960570992 | H81: -0.04211396893 | I81: 78
A82: 0 | B82: 7.8 | C82: 44.63 | D82: 0.000184378511 | E82: 14.63 | F82: -0.004518757643 | G82: -0.004334379133 | H82: -0.0390635081 | I82: 79
A83: 0 | B83: 7.9 | C83: 46.3075 | D83: 0.0001667612297 | E83: 16.3075 | F83: -0.00339552508 | G83: -0.003228763851 | H83: -0.03630864002 | I83: 80
A84: 0 | B84: 8 | C84: 48 | D84: 0.000151249758 | E84: 18 | F84: -0.00260741873 | G84: -0.002456168972 | H84: -0.03381353419 | I84: 81
A85: 0 | B85: 8.1 | C85: 49.7075 | D85: 0.0001375435322 | E85: 19.7075 | F85: -0.002040474525 | G85: -0.001902930993 | H85: -0.03154754509 | I85: 82
A86: 0 | B86: 8.2 | C86: 51.43 | D86: 0.0001253915458 | E86: 21.43 | F86: -0.001623485895 | G86: -0.00149809435 | H86: -0.02948434571 | I86: 83
A87: 0 | B87: 8.3 | C87: 53.1675 | D87: 0.0001145831362 | E87: 23.1675 | F87: -0.001310691428 | G87: -0.001196108292 | H87: -0.02760122428 | I87: 84
A88: 0 | B88: 8.4 | C88: 54.92 | D88: 0.000104940668 | E88: 24.92 | F88: -0.001071907814 | G88: -0.0009669671463 | H88: -0.02587851018 | I88: 85
A89: 0 | B89: =B88+xronos -> 8.5 | C89: 56.6875 | D89: 9.631368638e-05 | E89: 26.6875 | F89: -0.0008867482646 | G89: -0.0007904345782 | H89: -0.02429910279 | I89: 86
A90: 0 | B90: 8.6 | C90: 58.47 | D90: 8.857421828e-05 | E90: 28.47 | F90: -0.0007411420605 | G90: -0.0006525678422 | H90: -0.02284808273 | I90: 87
A91: 0 | B91: 8.7 | C91: 60.2675 | D91: 8.161297442e-05 | E91: 30.2675 | F91: -0.0006251851084 | G91: -0.0005435721339 | H91: -0.0215123896 | I91: 88
A92: 0 | B92: 8.8 | C92: 62.08 | D92: 7.533626397e-05 | E92: 32.08 | F92: -0.0005317804324 | G92: -0.0004564441684 | H92: -0.02028055358 | I92: 89
A93: 0 | B93: 8.9 | C93: 63.9075 | D93: 6.966347498e-05 | E93: 33.9075 | F93: -0.000455759075 | G93: -0.0003860956 | H93: -0.01914247085 | I93: 90
A94: 0 | B94: 9 | C94: 65.75 | D94: 6.452500714e-05 | E94: 35.75 | F94: -0.0003932999203 | G94: -0.0003287749131 | H94: -0.01808921489 | I94: 91
A95: 0 | B95: 9.1 | C95: 67.6075 | D95: 5.986056786e-05 | E95: 37.6075 | F95: -0.0003415395171 | G95: -0.0002816789492 | H95: -0.01711287733 | I95: 92
A96: 0 | B96: 9.2 | C96: 69.48 | D96: 5.561776169e-05 | E96: 39.48 | F96: -0.0002983050805 | G96: -0.0002426873188 | H96: -0.01620643319 | I96: 93
A97: 0 | B97: 9.3 | C97: 71.3675 | D97: 5.175091764e-05 | E97: 41.3675 | F97: -0.0002619288289 | G97: -0.0002101779112 | H97: -0.01536362628 | I97: 94
A98: 0 | B98: 9.4 | C98: 73.27 | D98: 4.822011038e-05 | E98: 43.27 | F98: -0.0002311169486 | G98: -0.0001828968382 | H98: -0.01457887154 | I98: 95
A99: 0 | B99: 9.5 | C99: 75.1875 | D99: 4.499034018e-05 | E99: 45.1875 | F99: -0.0002048558332 | G99: -0.0001598654931 | H99: -0.01384717135 | I99: 96
A100: 0 | B100: 9.6 | C100: =arxi+ve*(B100-$B$4)+1/2*acceleration*(B100-$B$4)^2 -> 77.12 | D100: =-ypologismos(arxi,0,B100-$B$4,1,d,aktina,ve,acceleration) -> 4.203084324e-05 | E100: =arxi+ve*(B100-$B$4)+acceleration/2*(B100-$B$4)^2-d -> 47.12 | F100: =-ypologismos(arxi,0,B100-$B$4,-1,d,aktina,ve,acceleration) -> -0.0001823441313 | G100: -0.000140313288 | H100: =roivrochos(arxi,0,B100-$B$4,1,d,aktina,ve,acceleration) -> -0.0131640438 | I100: 97
A101: 0 | B101: 9.7 | C101: 79.0675 | D101: 3.93145097e-05 | E101: 49.0675 | F101: -0.0001629429111 | G101: -0.0001236284014 | H101: -0.01252546082 | I101: 98
A102: 0 | B102: 9.8 | C102: 81.03 | D102: 3.681739079e-05 | E102: 51.03 | F102: -0.0001461387057 | G102: -0.0001093213149 | H102: -0.01192779473 | I102: 99
A103: 0 | B103: 9.9 | C103: 83.0075 | D103: 3.451828012e-05 | E103: 53.0075 | F103: -0.0001315158242 | G103: -9.699754409e-05 | H103: -0.01136777202 | I103: 100
A104: 0 | B104: 10 | C104: 85 | D104: 3.239835694e-05 | E104: 55 | F104: -0.0001187354046 | G104: -8.633704771e-05 | H104: -0.01084243311 | I104: 101
A105: 0 | B105: 10.1 | C105: 87.0075 | D105: 3.044088107e-05 | E105: 57.0075 | F105: -0.0001075194232 | G105: -7.707854213e-05 | H105: -0.01034909736 | I105: 102
A106: 0 | B106: 10.2 | C106: 89.03 | D106: 2.863093149e-05 | E106: 59.03 | F106: -9.763838243e-05 | G106: -6.900745095e-05 | H106: -0.009885332461 | I106: 103
A107: 0 | B107: 10.3 | C107: 91.0675 | D107: 2.695518156e-05 | E107: 61.0675 | F107: -8.890175623e-05 | G107: -6.194657466e-05 | H107: -0.009448927697 | I107: 104
A108: 0 | B108: 10.4 | C108: 93.12 | D108: 2.540170531e-05 | E108: 63.12 | F108: -8.115051813e-05 | G108: -5.574881282e-05 | H108: -0.009037870449 | I108: 105
A109: 0 | B109: 10.5 | C109: 95.1875 | D109: 2.395980994e-05 | E109: 65.1875 | F109: -7.42512572e-05 | G109: -5.029144727e-05 | H109: -0.008650325542 | I109: 106
A110: 0 | B110: 10.6 | C110: 97.27 | D110: 2.26198908e-05 | E110: 67.27 | F110: -6.809151285e-05 | G110: -4.547162206e-05 | H110: -0.008284617041 | I110: 107
A111: 0 | B111: 10.7 | C111: 99.3675 | D111: 2.137330538e-05 | E111: 69.3675 | F111: -6.25760526e-05 | G111: -4.120274722e-05 | H111: -0.007939212169 | I111: 108
A112: 0 | B112: 10.8 | C112: 101.48 | D112: 2.021226365e-05 | E112: 71.48 | F112: -5.762388424e-05 | G112: -3.741162059e-05 | H112: -0.007612707076 | I112: 109
A113: 0 | B113: 10.9 | C113: 103.6075 | D113: 1.912973234e-05 | E113: 73.6075 | F113: -5.316584385e-05 | G113: -3.403611151e-05 | H113: -0.007303814216 | I113: 110
A114: 0 | B114: 11 | C114: 105.75 | D114: 1.811935124e-05 | E114: 75.75 | F114: -4.914263797e-05 | G114: -3.102328673e-05 | H114: -0.007011351137 | I114: 111
A115: 0 | B115: 11.1 | C115: 107.9075 | D115: 1.717535992e-05 | E115: 77.9075 | F115: -4.550324635e-05 | G115: -2.832788643e-05 | H115: -0.006734230486 | I115: 112
A116: 0 | B116: 11.2 | C116: 110.08 | D116: 1.629253329e-05 | E116: 80.08 | F116: -4.220361234e-05 | G116: -2.591107905e-05 | H116: -0.006471451117 | I116: 113
A117: 0 | B117: 11.3 | C117: 112.2675 | D117: 1.546612498e-05 | E117: 82.2675 | F117: -3.920556414e-05 | G117: -2.373943916e-05 | H117: -0.006222090126 | I117: 114
A118: 0 | B118: 11.4 | C118: 114.47 | D118: 1.469181736e-05 | E118: 84.47 | F118: -3.647592227e-05 | G118: -2.178410491e-05 | H118: -0.005985295739 | I118: 115
A119: 0 | B119: 11.5 | C119: 116.6875 | D119: 1.396567746e-05 | E119: 86.6875 | F119: -3.398575787e-05 | G119: -2.00200804e-05 | H119: -0.005760280926 | I119: 116
A120: 0 | B120: 11.6 | C120: 118.92 | D120: 1.328411793e-05 | E120: 88.92 | F120: -3.170977391e-05 | G120: -1.842565597e-05 | H120: -0.005546317674 | I120: 117
A121: 0 | B121: 11.7 | C121: 121.1675 | D121: 1.264386244e-05 | E121: 91.1675 | F121: -2.962578687e-05 | G121: -1.698192443e-05 | H121: -0.005342731835 | I121: 118
A122: 0 | B122: 11.8 | C122: 123.43 | D122: 1.204191494e-05 | E122: 93.43 | F122: -2.771429099e-05 | G122: -1.567237605e-05 | H122: -0.005148898484 | I122: 119
A123: 0 | B123: 11.9 | C123: 125.7075 | D123: 1.147553239e-05 | E123: 95.7075 | F123: -2.595809057e-05 | G123: -1.448255818e-05 | H123: -0.004964237742 | I123: 120
A124: 0 | B124: 12 | C124: 128 | D124: 1.094220038e-05 | E124: 98 | F124: -2.434198867e-05 | G124: -1.339978829e-05 | H124: -0.004788210986 | I124: 121
A125: 0 | B125: 12.1 | C125: 130.3075 | D125: 1.043961143e-05 | E125: 100.3075 | F125: -2.285252271e-05 | G125: -1.241291128e-05 | H125: -0.004620317441 | I125: 122
A126: 0 | B126: 12.2 | C126: 132.63 | D126: 9.965645579e-06 | E126: 102.63 | F126: -2.147773907e-05 | G126: -1.151209349e-05 | H126: -0.00446009108 | I126: 123
A127: 0 | B127: 12.3 | C127: 134.9675 | D127: 9.51835304e-06 | E127: 104.9675 | F127: -2.020700054e-05 | G127: -1.06886475e-05 | H127: -0.004307097817 | I127: 124
A128: 0 | B128: 12.4 | C128: 137.32 | D128: 9.095938607e-06 | E128: 107.32 | F128: -1.903082114e-05 | G128: -9.934882534e-06 | H128: -0.004160932963 | I128: 125
A129: 0 | B129: 12.5 | C129: 139.6875 | D129: 8.696747705e-06 | E129: 109.6875 | F129: -1.79407242e-05 | G129: -9.24397649e-06 | H129: -0.004021218902 | I129: 126
A130: 0 | B130: 12.6 | C130: 142.07 | D130: 8.319253831e-06 | E130: 112.07 | F130: -1.692911994e-05 | G130: -8.609866111e-06 | H130: -0.003887602991 | I130: 127
A131: 0 | B131: 12.7 | C131: 144.4675 | D131: 7.962047257e-06 | E131: 114.4675 | F131: -1.598919977e-05 | G131: -8.027152511e-06 | H131: -0.00375975563 | I131: 128
A132: 0 | B132: 12.8 | C132: =arxi+ve*(B132-$B$4)+1/2*acceleration*(B132-$B$4)^2 -> 146.88 | D132: =-ypologismos(arxi,0,B132-$B$4,1,d,aktina,ve,acceleration) -> 7.623824846e-06 | E132: =arxi+ve*(B132-$B$4)+acceleration/2*(B132-$B$4)^2-d -> 116.88 | F132: =-ypologismos(arxi,0,B132-$B$4,-1,d,aktina,ve,acceleration) -> -1.511484455e-05 | G132: -7.491019704e-06 | H132: =roivrochos(arxi,0,B132-$B$4,1,d,aktina,ve,acceleration) -> -0.003637368515 | I132: 129
A133: =IF(I133=$L$4,1,0) -> 0 | B133: 12.9 | C133: 149.3075 | D133: 7.303380872e-06 | E133: 119.3075 | F133: -1.430054504e-05 | G133: =F133+D133 -> -6.997164171e-06 | H133: -0.003520153036 | I133: 130
A134: 0 | B134: 13 | C134: 151.75 | D134: 6.999598716e-06 | E134: 121.75 | F134: -1.354133256e-05 | G134: -6.541733842e-06 | H134: -0.003407838811 | I134: =I133+1 -> 131
A135: 0 | B135: 13.1 | C135: 154.2075 | D135: 6.711443362e-06 | E135: 124.2075 | F135: -1.283271846e-05 | G135: -6.1212751e-06 | H135: -0.003300172349 | I135: 132
A136: 0 | B136: 13.2 | C136: 156.68 | D136: 6.437954603e-06 | E136: 126.68 | F136: -1.217064128e-05 | G136: -5.732686673e-06 | H136: -0.003196915818 | I136: 133
A137: 0 | B137: 13.3 | C137: 159.1675 | D137: 6.178240872e-06 | E137: 129.1675 | F137: -1.155142028e-05 | G137: -5.37317941e-06 | H137: -0.003097845925 | I137: 134
A138: 0 | B138: 13.4 | C138: 161.67 | D138: 5.931473656e-06 | E138: 131.67 | F138: -1.09717148e-05 | G138: -5.040241148e-06 | H138: -0.003002752879 | I138: 135
A139: 0 | B139: 13.5 | C139: 164.1875 | D139: 5.696882408e-06 | E139: 134.1875 | F139: -1.042848834e-05 | G139: -4.731605936e-06 | H139: -0.00291143944 | I139: 136
A140: 0 | B140: 13.6 | C140: 166.72 | D140: 5.473749929e-06 | E140: 136.72 | F140: -9.918976976e-06 | G140: -4.445227046e-06 | H140: -0.00282372005 | I140: 137
A141: 0 | B141: 13.7 | C141: 169.2675 | D141: 5.261408157e-06 | E141: 139.2675 | F141: -9.440661413e-06 | G141: -4.179253256e-06 | H141: -0.002739420023 | I141: 138
A142: 0 | B142: 13.8 | C142: 171.83 | D142: 5.059234326e-06 | E142: 141.83 | F142: -8.991242288e-06 | G142: -3.932007961e-06 | H142: -0.002658374806 | I142: 139
A143: 0 | B143: 13.9 | C143: 174.4075 | D143: 4.866647473e-06 | E143: 144.4075 | F143: -8.568618232e-06 | G143: -3.701970758e-06 | H143: -0.002580429298 | I143: 140
A144: 0 | B144: 14 | C144: 177 | D144: 4.683105234e-06 | E144: 147 | F144: -8.170866408e-06 | G144: -3.487761173e-06 | H144: -0.002505437215 | I144: 141
A145: 0 | B145: 14.1 | C145: 179.6075 | D145: 4.508100924e-06 | E145: 149.6075 | F145: -7.796225188e-06 | G145: -3.288124264e-06 | H145: -0.002433260509 | I145: 142
A146: 0 | B146: 14.2 | C146: 182.23 | D146: 4.341160861e-06 | E146: 152.23 | F146: -7.443078718e-06 | G146: -3.101917857e-06 | H146: -0.002363768829 | I146: 143
A147: 0 | B147: 14.3 | C147: 184.8675 | D147: 4.181841916e-06 | E147: 154.8675 | F147: -7.10994314e-06 | G147: -2.928101224e-06 | H147: -0.002296839019 | I147: 144
A148: 0 | B148: 14.4 | C148: 187.52 | D148: 4.029729267e-06 | E148: 157.52 | F148: -6.795454275e-06 | G148: -2.765725008e-06 | H148: -0.002232354663 | I148: 145
A149: 0 | B149: 14.5 | C149: 190.1875 | D149: 3.884434341e-06 | E149: 160.1875 | F149: -6.498356598e-06 | G149: -2.613922257e-06 | H149: -0.002170205648 | I149: 146
A150: 0 | B150: 14.6 | C150: 192.87 | D150: 3.745592917e-06 | E150: 162.87 | F150: -6.21749335e-06 | G150: -2.471900434e-06 | H150: -0.002110287772 | I150: 147
A151: 0 | B151: 14.7 | C151: 195.5675 | D151: 3.612863388e-06 | E151: 165.5675 | F151: -5.951797665e-06 | G151: -2.338934277e-06 | H151: -0.002052502378 | I151: 148

Sheet Many
B1: CALCULATIONS FOR THE COIL IN SHEET "MAGNET" | J1: 20 | L1: 90
D2: NORTH | E2: SOUTH | F2: SUM | J2: N TURNS | L2: COIL LENGTH
A3: =IF($I$4=G3,1,0) -> 0 | B3: 0 | C3: =arxi+ve*(B3-$B$3)+acceleration*(B3-$B$3)^2/2 -> -40 | D3: =-tasipollon(arxi,0,B3-$B$3,1,d,aktina,ve,arspeiron,mikos,acceleration) -> 0.0003494836049 | E3: =-tasipollon(arxi,0,B3-$B$3,-1,d,aktina,ve,arspeiron,mikos,acceleration) -> -9.810735419e-05 | F3: =E3+D3 -> 0.0002513762508 | G3: =1 -> 1
A4: =IF($I$4=G4,1,0) -> 0 | B4: =B3+xronos -> 0.1 | C4: -39.4925 | D4: 0.0003703458677 | E4: -0.0001027715289 | F4: =E4+D4 -> 0.0002675743388 | G4: =G3+1 -> 2 | I4: =coil!L4 -> 15
A5: 0 | B5: =B4+xronos -> 0.2 | C5: -38.97 | D5: 0.0003925923521 | E5: -0.0001076324689 | F5: 0.0002849598832 | G5: =G4+1 -> 3 | J5: =VLOOKUP(1,A3:F182,2,FALSE) -> 1.4
A6: 0 | B6: 0.3 | C6: -38.4325 | D6: 0.000416359656 | E6: -0.0001127038788 | F6: 0.0003036557772 | G6: 4
A7: 0 | B7: 0.4 | C7: -37.88 | D7: 0.0004418007602 | E7: -0.0001180005295 | F7: 0.0003238002307 | G7: 5
A8: 0 | B8: 0.5 | C8: -37.3125 | D8: 0.0004690874651 | E8: -0.0001235383635 | F8: 0.0003455491016 | G8: 6 | J8: =VLOOKUP(1,A3:F185,4,FALSE) -> 0.0008401851576 | K8: EMF NORTH
A9: 0 | B9: 0.6 | C9: -36.73 | D9: 0.0004984132557 | E9: -0.0001293346124 | F9: 0.0003690786433 | G9: 7
A10: 0 | B10: 0.7 | C10: -36.1325 | D10: 0.0005299966849 | E10: -0.0001354079285 | F10: 0.0003945887564 | G10: 8
A11: 0 | B11: 0.8 | C11: -35.52 | D11: 0.0005640853821 | E11: -0.0001417785308 | F11: 0.0004223068513 | G11: 9 | J11: =VLOOKUP(1,A3:F188,5,FALSE) -> -0.0001876208527 | K11: EMF SOUTH
A12: 0 | B12: 0.9 | C12: -34.8925 | D12: 0.000600960824 | E12: -0.0001484683701 | F12: 0.000452492454 | G12: 10
A13: 0 | B13: 1 | C13: -34.25 | D13: 0.0006409440372 | E13: -0.0001555013123 | F13: 0.000485442725 | G13: 11
A14: 0 | B14: 1.1 | C14: -33.5925 | D14: 0.0006844024444 | E14: -0.0001629033465 | F14: 0.0005214990979 | G14: 12
A15: 0 | B15: 1.2 | C15: -32.92 | D15: 0.0007317581236 | E15: -0.0001707028181 | F15: 0.0005610553054 | G15: 13 | I15: =J5 -> 1.4 | J15: =VLOOKUP(1,A3:F192,6,FALSE) -> 0.000652564305 | K15: EMF TOTAL
A16: 0 | B16: 1.3 | C16: -32.2325 | D16: 0.0007834978214 | E16: -0.0001789306924 | F16: 0.000604567129 | G16: 14 | I16: =I15 -> 1.4 | J16: =J15 -> 0.000652564305
A17: 1 | B17: 1.4 | C17: -31.53 | D17: 0.0008401851576 | E17: -0.0001876208527 | F17: 0.000652564305 | G17: 15
A18: 0 | B18: 1.5 | C18: -30.8125 | D18: 0.0009024755816 | E18: -0.0001968104383 | F18: 0.0007056651433 | G18: 16
A19: 0 | B19: 1.6 | C19: -30.08 | D19: 0.0009711348101 | E19: -0.0002065402293 | F19: 0.0007645945808 | G19: 17
A20: 0 | B20: 1.7 | C20: -29.3325 | D20: 0.001047061696 | E20: -0.0002168550834 | F20: 0.0008302066124 | G20: 18
A21: 0 | B21: 1.8 | C21: -28.57 | D21: 0.001131316778 | E21: -0.0002278044361 | F21: 0.0009035123416 | G21: 19
A22: 0 | B22: 1.9 | C22: -27.7925 | D22: 0.001225158172 | E22: -0.000239442873 | F22: 0.0009857152993 | G22: 20
A23: 0 | B23: 2 | C23: -27 | D23: 0.001330087021 | E23: -0.0002518307857 | F23: 0.001078256236 | G23: 21
A24: 0 | B24: 2.1 | C24: -26.1925 | D24: 0.001447905494 | E24: -0.0002650351283 | F24: 0.001182870366 | G24: 22
A25: 0 | B25: 2.2 | C25: -25.37 | D25: 0.001580791422 | E25: -0.0002791302892 | F25: 0.001301661133 | G25: 23
A26: 0 | B26: 2.3 | C26: -24.5325 | D26: 0.001731395179 | E26: -0.0002941991005 | F26: 0.001437196079 | G26: 24
A27: 0 | B27: 2.4 | C27: -23.68 | D27: 0.001902966636 | E27: -0.0003103340109 | F27: 0.001592632625 | G27: 25
A28: 0 | B28: 2.5 | C28: -22.8125 | D28: 0.002099523167 | E28: -0.0003276384509 | F28: 0.001771884716 | G28: 26
A29: 0 | B29: 2.6 | C29: -21.93 | D29: 0.002326074397 | E29: -0.0003462284287 | F29: 0.001979845968 | G29: 27
A30: 0 | B30: 2.7 | C30: -21.0325 | D30: 0.002588926266 | E30: -0.0003662344022 | F30: 0.002222691864 | G30: 28
A31: 0 | B31: 2.8 | C31: -20.12 | D31: 0.002896097473 | E31: -0.0003878034818 | F31: 0.002508293991 | G31: 29
A32: 0 | B32: 2.9 | C32: -19.1925 | D32: 0.003257897268 | E32: -0.0004111020342 | F32: 0.002846795234 | G32: 30
A33: 0 | B33: 3 | C33: -18.25 | D33: 0.003687738364 | E33: -0.00043631877 | F33: 0.003251419594 | G33: 31
A34: 0 | B34: 3.1 | C34: -17.2925 | D34: 0.00420329767 | E34: -0.0004636684228 | F34: 0.003739629247 | G34: 32
A35: 0 | B35: 3.2 | C35: =arxi+ve*(B35-$B$3)+acceleration*(B35-$B$3)^2/2 -> -16.32 | D35: =-tasipollon(arxi,0,B35-$B$3,1,d,aktina,ve,arspeiron,mikos,acceleration) -> 0.004828199949 | E35: =-tasipollon(arxi,0,B35-$B$3,-1,d,aktina,ve,arspeiron,mikos,acceleration) -> -0.0004933961509 | F35: 0.004334803798 | G35: 33
A36: 0 | B36: 3.3 | C36: -15.3325 | D36: 0.005594500771 | E36: -0.000525782828 | F36: 0.005068717943 | G36: 34
A37: 0 | B37: 3.4 | C37: -14.33 | D37: 0.006546411973 | E37: -0.0005611514342 | F37: 0.005985260539 | G37: 35
A38: 0 | B38: 3.5 | C38: -13.3125 | D38: 0.007745990734 | E38: -0.0005998748146 | F38: 0.007146115919 | G38: 36
A39: 0 | B39: 3.6 | C39: -12.28 | D39: 0.009281978856 | E39: -0.00064238515 | F39: 0.008639593706 | G39: 37
A40: 0 | B40: 3.7 | C40: -11.2325 | D40: 0.01128375437 | E40: -0.0006891855826 | F40: 0.01059456879 | G40: 38
A41: 0 | B41: 3.8 | C41: -10.17 | D41: 0.01394361189 | E41: -0.000740864574 | F41: 0.01320274731 | G41: 39
A42: 0 | B42: 3.9 | C42: -9.0925 | D42: 0.01755244555 | E42: -0.0007981137515 | F42: 0.0167543318 | G42: 40
A43: 0 | B43: 4 | C43: -8 | D43: 0.0225559633 | E43: -0.0008617502388 | F43: 0.02169421306 | G43: 41
A44: 0 | B44: 4.1 | C44: -6.8925 | D44: 0.02963793619 | E44: -0.0009327448017 | F44: 0.02870519139 | G44: 42
A45: 0 | B45: 4.2 | C45: -5.77 | D45: 0.03982172121 | E45: -0.001012257595 | F45: 0.03880946361 | G45: 43
A46: 0 | B46: 4.3 | C46: -4.6325 | D46: 0.05451240027 | E46: -0.001101683935 | F46: 0.05341071634 | G46: 44
A47: 0 | B47: 4.4 | C47: -3.48 | D47: 0.07519124703 | E47: -0.001202713421 | F47: 0.0739885336 | G47: 45
A48: 0 | B48: 4.5 | C48: -2.3125 | D48: 0.1021156053 | E48: -0.001317407019 | F48: 0.1007981983 | G48: 46
A49: 0 | B49: 4.6 | C49: -1.13 | D49: 0.1318188718 | E49: -0.001448298566 | F49: 0.1303705733 | G49: 47
A50: 0 | B50: 4.7 | C50: 0.0675 | D50: 0.1568943696 | E50: -0.001598529889 | F50: 0.1552958397 | G50: 48
A51: 0 | B51: 4.8 | C51: 1.28 | D51: 0.173368386 | E51: -0.001772032749 | F51: 0.1715963533 | G51: 49
A52: 0 | B52: 4.9 | C52: 2.5075 | D52: 0.1859602314 | E52: -0.001973776917 | F52: 0.1839864545 | G52: 50
A53: 0 | B53: 5 | C53: 3.75 | D53: 0.1983553412 | E53: -0.002210113024 | F53: 0.1961452282 | G53: 51
A54: 0 | B54: 5.1 | C54: 5.0075 | D54: 0.2068497942 | E54: -0.002489253357 | F54: 0.2043605408 | G54: 52
A55: 0 | B55: 5.2 | C55: 6.28 | D55: 0.2111648912 | E55: -0.002821956889 | F55: 0.2083429343 | G55: 53
A56: 0 | B56: 5.3 | C56: 7.5675 | D56: 0.2172561671 | E56: -0.003222522288 | F56: 0.2140336448 | G56: 54
A57: 0 | B57: 5.4 | C57: 8.87 | D57: 0.224186179 | E57: -0.003710254643 | F57: 0.2204759244 | G57: 55
A58: 0 | B58: 5.5 | C58: 10.1875 | D58: 0.226881521 | E58: -0.004311676683 | F58: 0.2225698443 | G58: 56
A59: 0 | B59: 5.6 | C59: 11.52 | D59: 0.2295305071 | E59: -0.005063937405 | F59: 0.2244665697 | G59: 57
A60: 0 | B60: 5.7 | C60: 12.8675 | D60: 0.2356267379 | E60: -0.006020194963 | F60: 0.229606543 | G60: 58
A61: 0 | B61: 5.8 | C61: 14.23 | D61: 0.2389357967 | E61: -0.007258341422 | F61: 0.2316774553 | G61: 59
A62: 0 | B62: 5.9 | C62: 15.6075 | D62: 0.2398702438 | E62: -0.008895540471 | F62: 0.2309747033 | G62: 60
A63: 0 | B63: 6 | C63: 17 | D63: 0.2449080863 | E63: -0.01111315226 | F63: 0.2337949341 | G63: 61
A64: 0 | B64: 6.1 | C64: 18.4075 | D64: 0.2491094302 | E64: -0.01420066609 | F64: 0.2349087641 | G64: 62
A65: 0 | B65: 6.2 | C65: 19.83 | D65: 0.2494006319 | E65: -0.01863492056 | F65: 0.2307657114 | G65: 63
A66: 0 | B66: 6.3 | C66: 21.2675 | D66: 0.2534922123 | E66: -0.02522415284 | F66: 0.2282680595 | G66: 64
A67: 0 | B67: 6.4 | C67: =arxi+ve*(B67-$B$3)+acceleration*(B67-$B$3)^2/2 -> 22.72 | D67: =-tasipollon(arxi,0,B67-$B$3,1,d,aktina,ve,arspeiron,mikos,acceleration) -> 0.2582694814 | E67: =-tasipollon(arxi,0,B67-$B$3,-1,d,aktina,ve,arspeiron,mikos,acceleration) -> -0.0353619495 | F67: 0.2229075319 | G67: 65
A68: =IF($I$4=G68,1,0) -> 0 | B68: 6.5 | C68: 24.1875 | D68: 0.2583507626 | E68: -0.0514115787 | F68: =E68+D68 -> 0.2069391839 | G68: 66
A69: 0 | B69: =B68+xronos -> 6.6 | C69: 25.67 | D69: 0.2619146989 | E69: -0.07694808766 | F69: 0.1849666112 | G69: =G68+1 -> 67
A70: 0 | B70: 6.7 | C70: 27.1675 | D70: 0.2669079207 | E70: -0.1152900739 | F70: 0.1516178468 | G70: 68
A71: 0 | B71: 6.8 | C71: 28.68 | D71: 0.2667951901 | E71: -0.1627691444 | F71: 0.1040260457 | G71: 69
A72: 0 | B72: 6.9 | C72: 30.2075 | D72: 0.2703827885 | E72: -0.2025382496 | F72: 0.06784453886 | G72: 70
A73: 0 | B73: 7 | C73: 31.75 | D73: 0.2752277989 | E73: -0.2254510828 | F73: 0.04977671612 | G73: 71
A74: 0 | B74: 7.1 | C74: 33.3075 | D74: 0.2748234455 | E74: -0.2440926683 | F74: 0.03073077723 | G74: 72
A75: 0 | B75: 7.2 | C75: 34.88 | D75: 0.2790245804 | E75: -0.2579300114 | F75: 0.02109456901 | G75: 73
A76: 0 | B76: 7.3 | C76: 36.4675 | D76: 0.2831820557 | E76: -0.2635184127 | F76: 0.019663643 | G76: 74
A77: 0 | B77: 7.4 | C77: 38.07 | D77: 0.2826279751 | E77: -0.2725627117 | F77: 0.01006526345 | G77: 75
A78: 0 | B78: 7.5 | C78: 39.6875 | D78: 0.2878907059 | E78: -0.2787365144 | F78: 0.009154191541 | G78: 76
A79: 0 | B79: 7.6 | C79: 41.32 | D79: 0.2905491551 | E79: -0.2805694062 | F79: 0.009979748925 | G79: 77
A80: 0 | B80: 7.7 | C80: 42.9675 | D80: 0.290612254 | E80: -0.2880751146 | F80: 0.002537139398 | G80: 78
A81: 0 | B81: 7.8 | C81: 44.63 | D81: 0.2967398106 | E81: -0.290505558 | F81: 0.006234252579 | G81: 79
A82: 0 | B82: 7.9 | C82: 46.3075 | D82: 0.2972034049 | E82: -0.2927182864 | F82: 0.004485118434 | G82: 80
A83: 0 | B83: 8 | C83: 48 | D83: 0.2993243027 | E83: -0.2994359524 | F83: -0.0001116496739 | G83: 81
A84: 0 | B84: 8.1 | C84: 49.7075 | D84: 0.3047863976 | E84: -0.2992769655 | F84: 0.00550943205 | G84: 82
A85: 0 | B85: 8.2 | C85: 51.43 | D85: 0.3036693127 | E85: -0.3039808062 | F85: -0.000311493502 | G85: 83
A86: 0 | B86: 8.3 | C86: 53.1675 | D86: 0.3088014027 | E86: -0.3080603535 | F86: 0.0007410491923 | G86: 84
A87: 0 | B87: 8.4 | C87: 54.92 | D87: 0.3110888774 | E87: -0.3078638244 | F87: 0.003225053047 | G87: 85
A88: 0 | B88: 8.5 | C88: 56.6875 | D88: 0.3113247769 | E88: -0.3145914738 | F88: -0.003266696827 | G88: 86
A89: 0 | B89: 8.6 | C89: 58.47 | D89: 0.3174883888 | E89: -0.3146485111 | F89: 0.00283987764 | G89: 87
A90: 0 | B90: 8.7 | C90: 60.2675 | D90: 0.3161817102 | E90: -0.3181179797 | F90: -0.001936269466 | G90: 88
A91: 0 | B91: 8.8 | C91: 62.08 | D91: 0.3206954787 | E91: -0.3226695645 | F91: -0.001974085818 | G91: 89
A92: 0 | B92: 8.9 | C92: 63.9075 | D92: 0.3229435475 | E92: -0.3219352373 | F92: 0.001008310153 | G92: 90
A93: 0 | B93: 9 | C93: 65.75 | D93: 0.322765966 | E93: -0.3287366347 | F93: -0.005970668706 | G93: 91
A94: 0 | B94: 9.1 | C94: 67.6075 | D94: 0.328427476 | E94: -0.3281147666 | F94: 0.0003127094166 | G94: 92
A95: 0 | B95: 9.2 | C95: 69.48 | D95: 0.3259593081 | E95: -0.332464562 | F95: -0.006505253902 | G95: 93
A96: 0 | B96: 9.3 | C96: 71.3675 | D96: 0.330663268 | E96: -0.3355925951 | F96: -0.004929327138 | G96: 94
A97: 0 | B97: 9.4 | C97: 73.27 | D97: 0.3296199049 | E97: -0.3358403081 | F97: -0.006220403241 | G97: 95
A98: 0 | B98: 9.5 | C98: 75.1875 | D98: 0.3294490286 | E98: -0.3422576222 | F98: -0.01280859356 | G98: 96
A99: 0 | B99: 9.6 | C99: =arxi+ve*(B99-$B$3)+acceleration*(B99-$B$3)^2/2 -> 77.12 | D99: =-tasipollon(arxi,0,B99-$B$3,1,d,aktina,ve,arspeiron,mikos,acceleration) -> 0.330084164 | E99: =-tasipollon(arxi,0,B99-$B$3,-1,d,aktina,ve,arspeiron,mikos,acceleration) -> -0.340533445 | F99: -0.01044928104 | G99: 97
A100: 0 | B100: 9.7 | C100: 79.0675 | D100: 0.3228998717 | E100: -0.3471611793 | F100: -0.02426130759 | G100: 98
A101: 0 | B101: 9.8 | C101: 81.03 | D101: 0.3192433859 | E101: -0.346646674 | F101: -0.02740328816 | G101: 99
A102: 0 | B102: 9.9 | C102: 83.0075 | D102: 0.2986891883 | E102: -0.3507973155 | F102: -0.05210812724 | G102: 100
A103: 0 | B103: 10 | C103: 85 | D103: 0.270469615 | E103: -0.3532519432 | F103: -0.08278232813 | G103: 101
A104: 0 | B104: 10.1 | C104: 87.0075 | D104: 0.208250364 | E104: -0.354138293 | F104: -0.145887929 | G104: 102
A105: 0 | B105: 10.2 | C105: 89.03 | D105: 0.1298586814 | E105: -0.3593581825 | F105: -0.2294995011 | G105: 103
A106: 0 | B106: 10.3 | C106: 91.0675 | D106: 0.07596326339 | E106: -0.357779655 | F106: -0.2818163916 | G106: 104
A107: 0 | B107: 10.4 | C107: 93.12 | D107: 0.04607408742 | E107: -0.3643965851 | F107: -0.3183224977 | G107: 105
A108: 0 | B108: 10.5 | C108: 95.1875 | D108: 0.02972792743 | E108: -0.3616801632 | F108: -0.3319522358 | G108: 106
A109: 0 | B109: 10.6 | C109: 97.27 | D109: 0.02033838483 | E109: -0.3681168778 | F109: -0.3477784929 | G109: 107
A110: 0 | B110: 10.7 | C110: 99.3675 | D110: 0.01461209913 | E110: -0.3652102589 | F110: -0.3505981597 | G110: 108
A111: 0 | B111: 10.8 | C111: 101.48 | D111: 0.01092162527 | E111: -0.3700987913 | F111: -0.359177166 | G111: 109
A112: 0 | B112: 10.9 | C112: 103.6075 | D112: 0.008427969954 | E112: -0.3669737931 | F112: -0.3585458231 | G112: 110
A113: 0 | B113: 11 | C113: 105.75 | D113: 0.006674769244 | E113: -0.3687373072 | F113: -0.362062538 | G113: 111
A114: 0 | B114: 11.1 | C114: 107.9075 | D114: 0.005400492272 | E114: -0.363375831 | F114: -0.3579753387 | G114: 112
A115: 0 | B115: 11.2 | C115: 110.08 | D115: 0.004448034309 | E115: -0.3578255877 | F115: -0.3533775534 | G115: 113
A116: 0 | B116: 11.3 | C116: 112.2675 | D116: 0.003719026945 | E116: -0.3412772611 | F116: -0.3375582341 | G116: 114
A117: 0 | B117: 11.4 | C117: 114.47 | D117: 0.003149608439 | E117: -0.3097140186 | F117: -0.3065644102 | G117: 115
A118: 0 | B118: 11.5 | C118: 116.6875 | D118: 0.002696988074 | E118: -0.2440121754 | F118: -0.2413151873 | G118: 116
A119: 0 | B119: 11.6 | C119: 118.92 | D119: 0.002331689224 | E119: -0.1475092105 | F119: -0.1451775213 | G119: 117
A120: 0 | B120: 11.7 | C120: 121.1675 | D120: 0.002032906243 | E120: -0.0816089273 | F120: -0.07957602106 | G120: 118
A121: 0 | B121: 11.8 | C121: 123.43 | D121: 0.001785634095 | E121: -0.04728989211 | F121: -0.04550425801 | G121: 119
A122: 0 | B122: 11.9 | C122: 125.7075 | D122: 0.001578841963 | E122: -0.02956231258 | F122: -0.02798347062 | G122: 120
A123: 0 | B123: 12 | C123: 128 | D123: 0.00140428071 | E123: -0.01979360707 | F123: -0.01838932636 | G123: 121
A124: 0 | B124: 12.1 | C124: 130.3075 | D124: 0.001255685907 | E124: -0.01400751963 | F124: -0.01275183372 | G124: 122
A125: 0 | B125: 12.2 | C125: 132.63 | D125: 0.001128233914 | E125: -0.01035529023 | F125: -0.009227056313 | G125: 123
A126: 0 | B126: 12.3 | C126: 134.9675 | D126: 0.001018163568 | E126: -0.007924787181 | F126: -0.006906623612 | G126: 124
A127: 0 | B127: 12.4 | C127: 137.32 | D127: 0.0009225084495 | E127: -0.006235507453 | F127: -0.005312999003 | G127: 125
A128: 0 | B128: 12.5 | C128: 139.6875 | D128: 0.0008389044064 | E128: -0.005018587705 | F128: -0.004179683298 | G128: 126
A129: 0 | B129: 12.6 | C129: 142.07 | D129: 0.0007654491713 | E129: -0.004115437859 | F129: -0.003349988688 | G129: 127
A130: 0 | B130: 12.7 | C130: 144.4675 | D130: 0.0007005986013 | E130: -0.003428163379 | F130: -0.002727564777 | G130: 128
A131: 0 | B131: 12.8 | C131: =arxi+ve*(B131-$B$3)+acceleration*(B131-$B$3)^2/2 -> 146.88 | D131: =-tasipollon(arxi,0,B131-$B$3,1,d,aktina,ve,arspeiron,mikos,acceleration) -> 0.000643089048 | E131: =-tasipollon(arxi,0,B131-$B$3,-1,d,aktina,ve,arspeiron,mikos,acceleration) -> -0.002893926924 | F131: -0.002250837876 | G131: 129
A132: =IF($I$4=G132,1,0) -> 0 | B132: 12.9 | C132: 149.3075 | D132: 0.0005918786167 | E132: -0.002471009751 | F132: =E132+D132 -> -0.001879131135 | G132: 130
A133: 0 | B133: =B132+xronos -> 13 | C133: 151.75 | D133: 0.0005461022525 | E133: -0.002130890809 | F133: -0.001584788557 | G133: =G132+1 -> 131
A134: 0 | B134: 13.1 | C134: 154.2075 | D134: 0.0005050370622 | E134: -0.001853566255 | F134: -0.001348529192 | G134: 132
A135: 0 | B135: 13.2 | C135: 156.68 | D135: 0.0004680752974 | E135: -0.001624686701 | F135: -0.001156611404 | G135: 133
A136: 0 | B136: 13.3 | C136: 159.1675 | D136: 0.000434703127 | E136: -0.001433751897 | F136: -0.0009990487701 | G136: 134
A137: 0 | B137: 13.4 | C137: 161.67 | D137: 0.0004044838266 | E137: -0.001272940853 | F137: -0.0008684570262 | G137: 135
A138: 0 | B138: 13.5 | C138: 164.1875 | D138: 0.0003770443673 | E138: -0.001136335078 | F138: -0.0007592907105 | G138: 136
A139: 0 | B139: 13.6 | C139: 166.72 | D139: 0.0003520646412 | E139: -0.001019391437 | F139: -0.0006673267958 | G139: 137
A140: 0 | B140: 13.7 | C140: 169.2675 | D140: 0.0003292687493 | E140: -0.0009185772869 | F140: -0.0005893085376 | G140: 138
A141: 0 | B141: 13.8 | C141: 171.83 | D141: 0.0003084179126 | E141: -0.0008311133806 | F141: -0.000522695468 | G141: 139
A142: 0 | B142: 13.9 | C142: 174.4075 | D142: 0.0002893046716 | E142: -0.0007547897422 | F142: -0.0004654850706 | G142: 140
A143: 0 | B143: 14 | C143: 177 | D143: 0.0002717481124 | E143: -0.0006878318277 | F143: -0.0004160837152 | G143: 141
A144: 0 | B144: 14.1 | C144: 179.6075 | D144: 0.0002555899189 | E144: -0.0006288019056 | F144: -0.0003732119867 | G144: 142
A145: 0 | B145: 14.2 | C145: 182.23 | D145: 0.0002406910902 | E145: -0.0005765254757 | F145: -0.0003358343855 | G145: 143
A146: 0 | B146: 14.3 | C146: 184.8675 | D146: 0.0002269292003 | E146: -0.0005300357303 | F146: -0.00030310653 | G146: 144
A147: 0 | B147: 14.4 | C147: 187.52 | D147: 0.0002141960985 | E147: -0.000488531185 | F147: -0.0002743350865 | G147: 145
A148: 0 | B148: 14.5 | C148: 190.1875 | D148: 0.0002023959726 | E148: -0.000451343034 | F148: -0.0002489470615 | G148: 146
A149: 0 | B149: 14.6 | C149: 192.87 | D149: 0.0001914437109 | E149: -0.0004179097661 | F149: -0.0002264660552 | G149: 147
A150: 0 | B150: 14.7 | C150: 195.5675 | D150: 0.000181263511 | E150: -0.0003877572548 | F150: -0.0002064937438 | G150: 148
A151: 0 | B151: =B150+xronos -> 14.8 | C151: 198.28 | D151: 0.0001717876947 | E151: -0.0003604830183 | F151: -0.0001886953237 | G151: 149
A152: 0 | B152: 14.9 | C152: 201.0075 | D152: 0.0001629556941 | E152: -0.0003357436805 | F152: -0.0001727879864 | G152: 150
A153: 0 | B153: 15 | C153: 203.75 | D153: 0.000154713182 | E153: -0.0003132449122 | F153: -0.0001585317302 | G153: 151
A154: 0 | B154: 15.1 | C154: 206.5075 | D154: 0.0001470113234 | E154: -0.0002927333086 | F154: -0.0001457219852 | G154: 152
A155: 0 | B155: 15.2 | C155: 209.28 | D155: 0.0001398061287 | E155: -0.0002739897889 | F155: -0.0001341836602 | G155: 153
A156: 0 | B156: 15.3 | C156: 212.0675 | D156: 0.0001330578939 | E156: -0.0002568242009 | F156: -0.000123766307 | G156: 154
A157: 0 | B157: 15.4 | C157: 214.87 | D157: 0.0001267307149 | E157: -0.0002410708872 | F157: -0.0001143401723 | G157: 155
A158: 0 | B158: 15.5 | C158: 217.6875 | D158: 0.0001207920635 | E158: -0.0002265850207 | F158: -0.0001057929572 | G158: 156
A159: 0 | B159: 15.6 | C159: 220.52 | D159: 0.0001152124183 | E159: -0.0002132395628 | F159: -9.802714447e-05 | G159: 157
A160: 0 | B160: 15.7 | C160: 223.3675 | D160: 0.0001099649407 | E160: -0.0002009227245 | F160: -9.095778379e-05 | G160: 158
A161: 0 | B161: 15.8 | C161: 226.23 | D161: 0.0001050251915 | E161: -0.0001895358398 | F161: -8.451064833e-05 | G161: 159
A162: 0 | B162: 15.9 | C162: 229.1075 | D162: 0.0001003708807 | E162: -0.0001789915748 | F162: -7.862069414e-05 | G162: 160
A163: 0 | B163: 16 | C163: =arxi+ve*(B163-$B$3)+acceleration*(B163-$B$3)^2/2 -> 232 | D163: =-tasipollon(arxi,0,B163-$B$3,1,d,aktina,ve,arspeiron,mikos,acceleration) -> 9.598164793e-05 | E163: =-tasipollon(arxi,0,B163-$B$3,-1,d,aktina,ve,arspeiron,mikos,acceleration) -> -0.0001692124151 | F163: -7.32307672e-05 | G163: 161
A164: 0 | B164: 16.1 | C164: 234.9075 | D164: 9.183886781e-05 | E164: -0.0001601293821 | F164: -6.829051432e-05 | G164: 162
A165: 0 | B165: 16.2 | C165: 237.83 | D165: 8.792547795e-05 | E165: -0.0001516809403 | F165: -6.375546239e-05 | G165: 163
A166: 0 | B166: 16.3 | C166: 240.7675 | D166: 8.422582629e-05 | E166: -0.0001438120634 | F166: -5.958623712e-05 | G166: 164
A167: 0 | B167: 16.4 | C167: 243.72 | D167: 8.072553549e-05 | E167: -0.0001364734336 | F167: -5.574789809e-05 | G167: 165
A168: 0 | B168: 16.5 | C168: 246.6875 | D168: 7.741138214e-05 | E168: -0.000129620753 | F168: -5.220937084e-05 | G168: 166
A169: 0 | B169: 16.6 | C169: 249.67 | D169: 7.427118906e-05 | E169: -0.0001232141495 | F169: -4.894296044e-05 | G169: 167
A170: 0 | B170: 16.7 | C170: 252.6675 | D170: 7.129372896e-05 | E170: -0.0001172176625 | F170: -4.592393355e-05 | G170: 168
A171: 0 | B171: 16.8 | C171: 255.68 | D171: 6.846863835e-05 | E171: -0.0001115987967 | F171: -4.31301584e-05 | G171: 169
A172: 0 | B172: 16.9 | C172: 258.7075 | D172: 6.578634019e-05 | E172: -0.0001063281339 | F172: -4.054179374e-05 | G172: 170
A173: 0 | B173: 17 | C173: 261.75 | D173: 6.323797458e-05 | E173: -0.000101378994 | F173: -3.814101942e-05 | G173: 171
A174: 0 | B174: 17.1 | C174: 264.8075 | D174: 6.081533628e-05 | E174: -9.672713873e-05 | F174: -3.591180245e-05 | G174: 172
A175: 0 | B175: 17.2 | C175: 267.88 | D175: 5.851081852e-05 | E175: -9.235051195e-05 | F175: -3.383969344e-05 | G175: 173
A176: 0 | B176: 17.3 | C176: 270.9675 | D176: 5.631736226e-05 | E176: -8.822901111e-05 | F176: -3.191164885e-05 | G176: 174
A177: 0 | B177: 17.4 | C177: 274.07 | D177: 5.422841039e-05 | E177: -8.434428613e-05 | F177: -3.011587574e-05 | G177: 175
A178: 0 | B178: 17.5 | C178: 277.1875 | D178: 5.223786626e-05 | E178: -8.067956184e-05 | F178: -2.844169558e-05 | G178: 176
A179: 0 | B179: 17.6 | C179: 280.32 | D179: 5.034005612e-05 | E179: -7.721948082e-05 | F179: -2.687942471e-05 | G179: 177
A180: 0 | B180: 17.7 | C180: 283.4675 | D180: 4.852969505e-05 | E180: -7.394996421e-05 | F180: -2.542026916e-05 | G180: 178
A181: 0 | B181: 17.8 | C181: 286.63 | D181: 4.680185604e-05 | E181: -7.085808794e-05 | F181: -2.405623189e-05 | G181: 179
A182: 0 | B182: 17.9 | C182: 289.8075 | D182: 4.515194185e-05 | E182: -6.793197272e-05 | F182: -2.278003087e-05 | G182: 180
